Cogmind - Beta 16 @@@ ROGUE MODE // 2025.10.29 @ 03:24:48 Player: Naughtyusername Result: Escaped! Performance ------------- Evolutions (9) 4500 Regions Visited (33) 6600 Robots Destroyed (410) 2050 Value Destroyed (15551) 15551 Prototype IDs (127) 2540 Alien Tech Used (4) 800 Bonus (6381) 6381 TOTAL SCORE: 38422 Bonus ------- High Alert Combat Kills 651 Follower Combat Kills 511 Registered with UFD 300 Met Optimus in HQ 500 Met Data Miner 300 Met Zhirov 300 Met Warlord at Base 500 MAIN.C Attacked Warlord 500 Warlord Defense Kills 2648 Win 3000 Friendly Fire -2829 Cogmind --------- Core Integrity 671/1600 Matter 290/300 Energy 99/100 System Corruption 0% Temperature Cool (0) Movement Core (200) Ox3 Location To Epsilon Eridani Parts ------- > --- POWER (3) -------- (None) > --- PROPULSION (8) --- (None) > --- UTILITY (12) ----- (None) > --- WEAPON (3) ------- HERF Cannon > --- INVENTORY (5) ---- Experimental Actuator Array Centrium Light Armor Plating High-powered Tractor Beam Transdimensional Reconstructor Peak State ------------ > --- POWER ------------ Fusion Reactor Antimatter Reactor Quantum Reactor > --- PROPULSION ------- Combat Gravmag System Combat Gravmag System Cooled Antigrav System Cooled Antigrav System Combat Antigrav System Combat Antigrav System Combat Linear Gravjet Combat Linear Gravjet > --- UTILITY ---------- Advanced Heat Sink Experimental Cooling System High-capacity Storage Unit Spectral Analyzer Experimental Sensor Array Advanced Signal Interpreter Experimental Targeting Computer Experimental Core Analyzer Experimental Transmission Jammer Centrium Light Armor Plating > --- WEAPON ----------- Enhanced Nova Cannon Sigix Broadsword > --- INVENTORY -------- Cooled Antigrav System Combat Linear Gravjet Experimental Matter Compressor Long-range IFF Parser Advanced Weapon Cycler Improved Cloaking Device Experimental Weapon Shielding Centrium Light Armor Plating Centrium Light Armor Plating Graphene Brace Experimental EM Disruption Field Advanced Force Field Transdimensional Reconstructor Subatomic Replicator HERF Cannon Nova Cannon Enhanced Nova Cannon Enhanced Hardcell Cannon Gamma Bomb Array Experimental Neutron Missile Launcher [Rating: 213] Favorites ----------- Power Heavy Ion Engine Engine Heavy Ion Engine Power Core Neutrino Core Reactor Graviton Reactor Propulsion Combat Gravmag System Treads Light Treads Leg Aluminum Leg Wheel Compact Wheel Hover Unit Combat Gravmag System Flight Unit Improved VTOL Module Utility High-capacity Storage Unit Device Cooling System Storage High-capacity Storage Unit Processor Advanced Targeting Computer Hackware Advanced Hacking Suite Protection Improved Weapon Shielding Weapon Spread Laser Energy Gun Spread Laser Energy Cannon Neutron Cannon Ballistic Gun Enhanced Autogun Ballistic Cannon Hypervelocity Gauss Cannon Launcher Experimental Neutron Missile Launcher Special Weapon CPS Tube Impact Weapon Impact Mace Slashing Weapon Nanosword Special Melee Weapon Datajack Build | -11 -10 -10 -9 -9 -9 -8 -8 -8 -8 -8 -6 -6 -6 -6 -6 -6 -5 -5 -5 -5 -5 -4 -4 -4 -4 -4 -3 -3 -3 -2 -2 -2 -1 ------- Run | Yrd Mat Min Mat Min Exi Min Mat Sto Rec Scr Fac Was Fac Low Low Dat Pro Fac Upp Upp War Pro Fac Upp Upp Zhi Pro Res Tes Res Qua Frg Acc Slots Evolved 18 | . . . 2 . . . 2 . . . 4 . . . . . . 2 . . . . 2 . . . . 2 . 2 . . 2 Power 1 | . . . . . . . . . . . 1 . . . . . . . . . . . . . . . . . . . . . . Propulsion 6 | . . . 1 . . . 1 . . . 1 . . . . . . 1 . . . . 2 . . . . . . . . . . Utility 10 | . . . 1 . . . 1 . . . 2 . . . . . . 1 . . . . . . . . . 2 . 1 . . 2 Weapon 1 | . . . . . . . . . . . . . . . . . . . . . . . . . . . . . . 1 . . . Parts Attached 335 | 7 6 1 19 . 3 3 18 21 6 3 62 . 20 6 1 . 6 32 1 . 31 1 3 2 . 6 3 13 19 10 22 1 9 Power 36 | 1 . . 3 . . . 1 1 . . 8 . 5 2 . . . 3 . . 5 . . . . 1 . . . . 4 . 2 Engine 17 | 1 . . 3 . . . 1 1 . . 4 . 4 1 . . . . . . 1 . . . . . . . . . 1 . . Core 9 | . . . . . . . . . . . 3 . 1 1 . . . 3 . . 1 . . . . . . . . . . . . Reactor 10 | . . . . . . . . . . . 1 . . . . . . . . . 3 . . . . 1 . . . . 3 . 2 Propulsion 99 | 2 . 1 8 . . 1 12 8 4 1 16 . 4 2 1 . 2 12 . . 3 . 1 . . 1 . 5 3 2 5 1 4 Treads 21 | 2 . 1 8 . . 1 5 . . . . . . 1 . . . 3 . . . . . . . . . . . . . . . Leg 35 | . . . . . . . 6 6 4 1 13 . . 1 1 . 2 1 . . . . . . . . . . . . . . . Wheel 4 | . . . . . . . . . . . . . 4 . . . . . . . . . . . . . . . . . . . . Hover 37 | . . . . . . . 1 . . . 3 . . . . . . 8 . . 3 . 1 . . 1 . 5 3 2 5 1 4 Flight 2 | . . . . . . . . 2 . . . . . . . . . . . . . . . . . . . . . . . . . Utility 117 | 2 3 . 3 . 1 2 2 3 . 2 22 . 7 1 . . 1 13 . . 14 1 1 2 . 2 3 8 8 4 10 . 2 Device 61 | 1 2 . . . . 2 . 1 . 2 8 . 4 1 . . 1 6 . . 8 . . 2 . 1 2 6 6 2 6 . . Storage 12 | 1 1 . 1 . 1 . . . . . 3 . 1 . . . . 2 . . . . . . . . 1 . . . 1 . . Processor 21 | . . . . . . . 1 . . . 5 . 1 . . . . 4 . . 4 . . . . . . . 1 1 2 . 2 Hackware 3 | . . . . . . . . . . . . . . . . . . 1 . . . . 1 . . . . 1 . . . . . Protection 20 | . . . 2 . . . 1 2 . . 6 . 1 . . . . . . . 2 1 . . . 1 . 1 1 1 1 . . Artifact . | . . . . . . . . . . . . . . . . . . . . . . . . . . . . . . . . . . Weapon 83 | 2 3 . 5 . 2 . 3 9 2 . 16 . 4 1 . . 3 4 1 . 9 . 1 . . 2 . . 8 4 3 . 1 Energy Gun 23 | . 2 . 3 . 1 . 3 3 . . 5 . 1 . . . . 1 . . . . . . . . . . 4 . . . . Energy Cannon 22 | . . . . . . . . 1 . . 5 . 1 . . . . 2 . . 3 . 1 . . 1 . . 3 2 2 . 1 Ballistic Gun 8 | 2 . . . . . . . 2 . . 1 . . . . . . 1 . . 2 . . . . . . . . . . . . Ballistic Cannon 5 | . . . . . . . . . . . . . . . . . 3 . 1 . . . . . . . . . . 1 . . . Launcher 14 | . 1 . 2 . . . . 3 . . 3 . 2 1 . . . . . . 1 . . . . . . . . 1 . . . Special Weapon 5 | . . . . . . . . . . . 1 . . . . . . . . . 3 . . . . 1 . . . . . . . Impact Weapon 1 | . . . . . . . . . . . 1 . . . . . . . . . . . . . . . . . . . . . . Slashing Weapon 3 | . . . . . . . . . 1 . . . . . . . . . . . . . . . . . . . 1 . 1 . . Piercing Weapon . | . . . . . . . . . . . . . . . . . . . . . . . . . . . . . . . . . . Special Melee Weapon 2 | . . . . . 1 . . . 1 . . . . . . . . . . . . . . . . . . . . . . . . Unidentified Prototypes 64 | . . . 1 . . . 2 5 . . 10 . 2 . . . 1 3 . 1 17 . . . . 3 . 4 9 2 3 . 1 Parts Lost 98 | . . 1 3 . . 2 5 7 . . 7 . 6 1 . . 1 9 . . 1 . 3 1 1 . 1 3 1 2 19 12 12 Power 16 | . . . . . . . . 1 . . 1 . 3 1 . . . 1 . . 1 . 2 . . . . 1 . . 2 2 1 Propulsion 34 | . . 1 2 . . 1 4 4 . . 1 . 1 . . . . 3 . . . . . . . . 1 1 . . 4 5 6 Utility 36 | . . . . . . 1 1 2 . . 3 . 1 . . . . 4 . . . . . 1 1 . . . 1 2 12 3 4 Weapon 12 | . . . 1 . . . . . . . 2 . 1 . . . 1 1 . . . . 1 . . . . 1 . . 1 2 1 Highest Loss Streak 17 | . . 1 2 . . 2 3 2 . . 4 . 2 1 . . 1 5 . . 1 . 3 4 1 . 1 3 1 2 17 12 10 To Critical Strikes . | . . . . . . . . . . . . . . . . . . . . . . . . . . . . . . . . . . Average Backups 18 | . 7 12 18 19 19 19 19 19 20 19 18 19 18 14 15 15 14 18 19 19 19 19 18 19 19 19 19 19 19 19 18 18 15 Power . | . 1 1 1 1 1 1 1 . . . . 1 . . . . . . 1 1 . 1 1 . . . 1 . . 1 . 2 1 Propulsion 1 | . . 1 1 2 2 2 1 1 2 2 2 . . . . . . 2 2 2 1 3 1 2 2 2 1 . 1 1 2 2 1 Utility 8 | . 3 5 8 8 9 8 9 9 10 10 8 9 8 5 5 5 5 4 4 4 8 11 12 12 12 12 13 13 13 12 8 5 4 Weapon 5 | . 2 3 5 6 7 6 6 6 6 4 3 5 5 5 6 7 6 7 8 9 6 3 4 3 4 3 3 4 3 3 4 4 3 Tool/Special . | . . . . . . . . . . . . . . . . . . . . . . . . . . . . . . . . . . Unused Backups 55 | . 1 . 3 1 . . 8 2 1 4 5 . 3 1 2 . . 3 . . 4 . . 1 . . . . 1 3 4 . 8 Power 7 | . 1 . . 1 . . . . . . . . . . . . . . . . 1 . . . . . . . . 1 1 . 2 Propulsion 13 | . . . 1 . . . . 1 . . 3 . 1 1 . . . 3 . . 1 . . 1 . . . . . . . . 1 Utility 18 | . . . 2 . . . 2 1 . 3 1 . 2 . 1 . . . . . 1 . . . . . . . 1 2 1 . 1 Weapon 12 | . . . . . . . 6 . 1 1 1 . . . 1 . . . . . 1 . . . . . . . . . 1 . . Tool/Special 5 | . . . . . . . . . . . . . . . . . . . . . . . . . . . . . . . 1 . 4 Average Slot Usage (%) 95 | . 99 99 98 100 89 99 96 99 100 100 98 80 81 98 100 89 100 86 98 94 96 100 99 93 94 87 90 89 93 91 90 76 52 Engine 6 | . 14 14 11 11 11 11 9 9 9 9 10 3 8 12 6 6 6 2 . . . . . . . . . . . . 1 2 . Core 2 | . . . . . . . . . . . . 4 2 . 6 6 6 7 10 9 7 5 5 . . . . . . . . . . Reactor 1 | . . . . . . . . . . . 1 . . . . . . . . . 4 11 9 8 10 10 10 9 9 8 9 7 4 Treads 8 | . 28 27 32 33 33 32 17 . . . . . . 5 6 6 3 5 . . . . . . . . . . . . . . . Leg 10 | . . . . . . . 16 35 36 36 30 . . 5 10 13 16 8 . . . . . . . . . . . . . . . Wheel 1 | . . . . . . . . . . . . . . 20 15 13 11 . . . . . . . . . . . . . . . . Hover 11 | . . . . . . . . . . . 1 20 18 . . . . 12 35 33 32 33 39 40 40 40 40 36 36 33 32 27 16 Device 11 | . 13 14 11 11 11 11 10 8 9 9 4 6 10 18 20 20 18 13 16 15 13 15 10 13 14 14 14 13 14 15 17 15 10 Storage 7 | . 14 14 11 11 11 11 9 9 9 9 6 6 6 6 6 6 6 5 5 5 5 5 5 5 5 5 5 4 4 4 5 8 6 Processor 10 | . . . . . . . 6 9 9 9 20 20 16 13 13 13 13 14 17 16 16 11 10 10 10 10 10 9 11 14 9 4 9 Protection 5 | . . . 10 11 11 11 9 9 9 9 7 6 4 . . . . . . . 2 5 5 1 . . . 4 4 4 4 5 1 Energy Gun 7 | . 23 28 21 22 1 22 18 7 . . 1 3 5 5 6 1 . 2 5 5 2 . . . . . . . . . . . . Energy Cannon 2 | . . . . . . . . . . . 4 1 1 6 6 1 . 3 5 5 4 3 1 5 4 2 5 4 4 4 6 4 . Ballistic Gun 3 | . 4 . . . . . . 8 17 17 3 . . . . . . . . . 1 6 8 4 5 . . . . . . . . Peak Build Rating 213 | 7 11 13 20 21 21 21 37 37 39 42 88 86 95 80 78 78 84 118 117 117 149 152 160 160 164 160 163 170 187 206 213 171 163 Average Rating 73 | 5 10 11 17 20 18 20 29 31 31 39 65 80 80 72 76 66 78 100 115 114 130 145 158 151 155 146 149 163 177 194 188 145 116 On Entrance 88 | . 7 11 13 20 21 20 21 34 31 39 40 85 73 78 74 78 78 84 106 117 116 148 144 135 160 155 160 149 158 185 195 171 90 Avg Prop Armor Cover (%) 12 | . . . . . . . 11 . . . 8 . 6 11 15 21 12 1 . . . . . . . . . . 1 . . . . Naked Turns 12 | . . . . . . . . . . . . . . . . . . . . . . . . . . . . . . . . . 12 Heaviest Build 141 | 13 33 33 58 58 58 58 59 67 59 59 89 67 75 60 51 53 61 86 86 86 126 125 121 117 117 118 119 124 121 135 141 109 88 Greatest Support 210 | 40 40 40 60 60 60 60 80 50 64 69 97 52 64 42 42 26 88 210 75 85 88 81 114 109 109 109 112 114 128 135 132 110 91 Greatest Overweight (x) 5 | . . . 2 . . . 1 1 1 . 3 1 5 1 1 2 2 1 1 1 1 1 1 1 1 1 1 1 1 1 1 1 3 Average Overweight (x) . | . . . . . . . . 1 . . . 1 . 1 1 1 1 . . . . 1 . . . . . . . . . . . Largest Inventory Capacity 20 | 8 15 15 20 20 20 20 20 20 20 20 20 20 20 15 15 15 15 20 20 20 20 20 20 20 20 20 20 20 20 20 20 20 20 Average Capacity 19 | 7 11 15 19 20 20 20 20 20 20 20 20 20 18 15 15 15 15 19 20 20 20 20 20 20 20 20 20 20 20 20 20 20 19 Most Carried 20 | 1 11 15 20 20 20 20 20 20 20 20 20 20 20 15 15 15 15 20 20 20 20 20 20 20 20 20 20 20 20 20 20 20 20 Average Carried 18 | . 7 12 18 19 19 19 19 19 19 19 19 19 18 14 14 15 14 18 19 19 19 20 19 19 19 19 19 19 19 19 18 19 16 Final Capacity 20 | 8 15 15 20 20 20 20 20 20 20 20 20 20 15 15 15 15 15 20 20 20 20 20 20 20 20 20 20 20 20 20 20 20 5 Final Carried 20 | 1 11 15 20 20 19 20 20 20 20 20 20 20 15 15 15 15 15 20 19 19 20 20 20 20 19 20 20 20 20 20 20 19 4 Class Distribution -------------------- 38% | Mutant 16% | Scavenger-Mutant 12% | Commander-Mutant 11% | Scavenger-Scout 8% | Skirmisher 3% | Derelict-Mutant Dominant Class ---------------- Mutant | -10/Materials Mutant | -10/Mines Mutant | -9/Materials Mutant | -9/Mines Scavenger-Mutant | -9/Exiles Mutant | -8/Mines Mutant | -8/Materials Scavenger-Mutant | -8/Storage Commander-Mutant | -8/Recycling Commander-Mutant | -8/Scraptown Mutant | -6/Factory Mutant | -6/Waste Mutant | -6/Factory Skirmisher | -6/Lower Caves Derelict-Mutant | -6/Lower Caves Derelict-Mutant | -6/Data Miner Derelict-Mutant | -5/Proximity Caves Skirmisher | -5/Factory Skirmisher | -5/Upper Caves Skirmisher | -5/Upper Caves Scavenger-Mutant | -5/Warlord Scavenger-Skirmisher | -4/Proximity Caves Scavenger-Scout | -4/Factory Scavenger-Scout | -4/Upper Caves Scavenger-Scout | -4/Upper Caves Scavenger-Scout | -4/Zhirov Scavenger-Scout | -3/Proximity Caves Hacker-Scout | -3/Research Scavenger-Scout | -3/Testing Scavenger-Scout | -2/Research Scavenger-Scout | -2/Quarantine Mutant | -2/Protoforge Scavenger-Mutant | -1/Access Resources | -11 -10 -10 -9 -9 -9 -8 -8 -8 -8 -8 -6 -6 -6 -6 -6 -6 -5 -5 -5 -5 -5 -4 -4 -4 -4 -4 -3 -3 -3 -2 -2 -2 -1 ----------- Run | Yrd Mat Min Mat Min Exi Min Mat Sto Rec Scr Fac Was Fac Low Low Dat Pro Fac Upp Upp War Pro Fac Upp Upp Zhi Pro Res Tes Res Qua Frg Acc Matter Collected 14512 | 338 120 55 433 42 . 125 222 640 168 40 1616 . 1379 460 462 . 321 1961 221 39 1501 296 449 191 1055 233 189 251 678 367 416 . 244 Remotely 577 | . . . . . . . . . . . . . . . . . . 577 . . . . . . . . . . . . . . . Salvage Created 16831 | 177 630 125 1143 . . 306 1384 1351 334 . 2779 . 1332 167 235 . 265 1848 57 47 810 178 386 143 184 233 36 . 890 792 762 67 170 Parts 848 | 11 42 5 87 . . 23 63 73 11 . 131 . 60 8 3 . 10 86 1 3 42 6 23 5 5 1 6 . 44 34 46 6 13 Haulers Intercepted 30 | . 2 . 6 . . . 6 5 . . 5 . 2 . . . . 4 . . . . . . . . . . . . . . . Recyclers Shooed 18 | . 1 . 2 . . . 4 1 1 . 2 . . . . . . 6 . . . . . . . . . . . 1 . . . Parts Field Recycled . | . . . . . . . . . . . . . . . . . . . . . . . . . . . . . . . . . . Retrieved Matter . | . . . . . . . . . . . . . . . . . . . . . . . . . . . . . . . . . . Parts Self-Destructed 48 | . . . . . . . . . . . . . . 4 2 . 19 . 2 9 . 5 . 2 3 . 2 . . . . . . Prevented 3 | . . . . . . . . . . . . . . 1 . . 1 . . . . . . . 1 . . . . . . . . Parts Restored . | . . . . . . . . . . . . . . . . . . . . . . . . . . . . . . . . . . Kills | -11 -10 -10 -9 -9 -9 -8 -8 -8 -8 -8 -6 -6 -6 -6 -6 -6 -5 -5 -5 -5 -5 -4 -4 -4 -4 -4 -3 -3 -3 -2 -2 -2 -1 ------- Run | Yrd Mat Min Mat Min Exi Min Mat Sto Rec Scr Fac Was Fac Low Low Dat Pro Fac Upp Upp War Pro Fac Upp Upp Zhi Pro Res Tes Res Qua Frg Acc Combat Hostiles Destroyed 285 | . 17 5 32 . . 8 28 24 2 . 41 . 26 5 . . 7 20 . 2 22 4 6 4 4 . 2 . 4 9 9 1 3 Melee 8 | . . . . . . . . . . . 4 . 1 . . . . . . . . . . . . . . . . . 2 . 1 Guns 133 | . 14 4 26 . . 8 27 17 2 . 10 . 8 2 . . . 7 . 1 1 . 5 1 . . . . . . . . . Cannons 57 | . . . . . . . . 2 . . 12 . 4 1 . . 3 13 . 1 4 . 1 2 1 . . . 3 5 4 1 . AOE 75 | . 3 1 6 . . . 1 3 . . 13 . 11 2 . . 4 . . . 17 4 . 1 3 . 2 . . 2 . . 2 Classes Destroyed 21 | 3 4 . 4 . . 1 1 . 1 . 3 . . 2 . . . . . . 1 . . . . . 1 . . . . . . Worker 25 | 2 . 1 6 . . 1 1 1 . . 4 . 3 . . . . 4 . . . . 1 . . . . . 1 . . . . Builder 13 | . . . 1 . . 1 2 1 . . 2 . 3 . . . . 1 . . . . . . . . . . 1 1 . . . Tunneler 11 | 4 . . 2 . . 1 . . . . 3 . . . . . . . . . . . . . . . . . . . . . 1 Hauler 30 | . 2 . 6 . . . 6 5 . . 5 . 2 . . . . 4 . . . . . . . . . . . . . . . Recycler 19 | 1 1 . 2 . . . 1 . 2 . 3 . 1 . . . . 2 . . . . . . . . . . 4 1 1 . . Mechanic 4 | . . . . . . . . . . . 3 . 1 . . . . . . . . . . . . . . . . . . . . Operator 7 | . 1 . 1 . . . 1 . . . 1 . . . . . . 1 . . . . 1 . . . . . . . . . 1 Drone 2 | . . . . . . . . . . . . . . . . . . . . . . . . . . . 2 . . . . . . Watcher 16 | . . . 4 . . . 4 1 . . 1 . . . . . . 4 . . . . . . . . . . 1 . . . 1 Swarmer 60 | . 3 1 11 . . 3 5 4 . . 7 . 11 3 . . 4 . . 2 3 . 2 . . . . . . . 1 . . Grunt 99 | . 14 4 12 . . 2 14 9 . . 8 . 8 . . . 2 7 . . 10 2 . . 4 . . . . 3 . . . Duelist 3 | . . . 1 . . 1 . . . . . . . . . . 1 . . . . . . . . . . . . . . . . Protector 1 | . . . . . . . . . . . 1 . . . . . . . . . . . . . . . . . . . . . . Sentry 40 | . . . 8 . . . 8 11 1 . 4 . 3 . . . . 2 . . . . 2 . . . . . . 1 . . . Specialist 7 | . . . . . . . . . . . 5 . . . . . . . . . 2 . . . . . . . . . . . . Hunter 20 | . . . . . . 2 . . . . 5 . 2 . . . . 2 . . 2 . . . . . . . . 2 3 . 2 Programmer 49 | . . . . . . . . . 1 . 11 . 2 . . . . 9 . . 4 2 2 4 . . . . 4 3 5 1 1 Heavy 1 | . . . . . . . 1 . . . . . . . . . . . . . . . . . . . . . . . . . . Striker 1 | . . . . . . . . . . . . . . . . . . . . . 1 . . . . . . . . . . . . Decomposer 1 | . . . . . . . . . . . . . . . . . . . 1 . . . . . . . . . . . . . . Samaritan 3 | . . . . . . . . . . . . . . 1 . . . . 1 . . . . . . . 1 . . . . . . Assembled 2 | . . . . . . . . . . . . . . 2 . . . . . . . . . . . . . . . . . . . Thug 1 | . . . . . . . . . . . . . . . . . . . . . 1 . . . . . . . . . . . . Best Kill Streak 16 | 5 4 2 10 . . 3 6 7 2 . 16 . 9 2 . . 4 7 . 2 7 2 5 2 4 . 2 . 5 7 4 1 6 Combat Bots Only 9 | . 4 2 7 . . 3 5 7 2 . 9 . 7 2 . . 4 5 . 2 7 2 5 2 4 . 2 . 2 5 3 1 3 Max Kills in Single Turn 11 | 1 2 1 4 . . 1 2 2 1 . 11 . 5 1 . . 4 2 1 1 3 2 2 1 2 . 2 . 1 1 1 1 2 Gunslinging 1 | . . . 1 . . . 1 1 . . . . . . . . . . . . . . 1 . . . . . . . . . . Exploded 8 | . 2 1 2 . . . 1 2 . . 8 . 4 1 . . 4 . . . 3 2 . 1 2 . 2 . . 1 . . 1 Melee 1 | . . . . . . . . . . . 1 . 1 . . . . . . . . . . . . . . . . . 1 . 1 Uniques/NPCs Destroyed 1 | . . . . . . . . . . . . . . . . . . . . . 1 . . . . . . . . . . . . LV-01A (-5/Warlord) Combat | -11 -10 -10 -9 -9 -9 -8 -8 -8 -8 -8 -6 -6 -6 -6 -6 -6 -5 -5 -5 -5 -5 -4 -4 -4 -4 -4 -3 -3 -3 -2 -2 -2 -1 -------- Run | Yrd Mat Min Mat Min Exi Min Mat Sto Rec Scr Fac Was Fac Low Low Dat Pro Fac Upp Upp War Pro Fac Upp Upp Zhi Pro Res Tes Res Qua Frg Acc Hostile Shots Fired 2004 | . 44 21 85 . . 30 126 103 9 . 415 1 155 23 3 . 7 232 . 33 31 8 103 26 14 . . 7 24 77 225 48 154 Missed 657 | . 12 7 30 . . 10 32 26 1 . 144 . 65 7 1 . 3 64 . 14 8 4 36 9 5 . . 1 10 27 62 9 70 Hits 1347 | . 32 14 55 . . 20 94 77 8 . 271 1 90 16 2 . 4 168 . 19 23 4 67 17 9 . . 6 14 50 163 39 84 Melee 9 | . . . 1 . . 3 . . . . . 1 . 3 . . 1 . . . . . . . . . . . . . . . . Projectile 1338 | . 32 14 54 . . 17 94 77 8 . 271 . 90 13 2 . 3 168 . 19 23 4 67 17 9 . . 6 14 50 163 39 84 AOE 3 | . . . . . . . . . . . . . . . . . . . . . 2 . . . . . . . . . . . 1 Critical Strikes 63 | . . 3 1 . . 1 4 6 . . 7 . 5 . . . . 6 . 2 1 . 3 2 . . . . 1 3 9 4 5 Actively Blocked 8 | . . . . . . . . 1 . . . . . . . . . . . . . . . . . . . . . . 7 . . Part Disruptions 5 | . . . . . . . . . . . . . . . . . . 1 . . 1 . . . . . . . 2 1 . . . Actively Blocked 1 | . . . . . . . . . . . . . . . . . . . . . 1 . . . . . . . . . . . . Damage Taken 25441 | . 384 177 668 16 . 301 1551 1199 168 . 4272 39 1562 279 39 . 150 3209 . 314 525 61 940 343 180 . 81 197 336 876 4441 896 2237 Core 3929 | . 52 44 37 . . 42 172 196 26 . 531 . 187 24 . . 22 336 . 30 112 14 65 40 . . . 11 23 104 816 116 929 Absorbed by Shields 1219 | . . . . . . . . . 25 . 55 . . . . . . . . . 104 19 239 9 . . . 83 . 230 455 . . Reduced by Siege Mode 156 | . . . . . . . . . . . . . . . . . . 156 . . . . . . . . . . . . . . . Redirected to Shielding 379 | . . . 15 . . . 160 41 . . . . . . . . . . . . 45 . . . . . . . . . 118 . . Ignored by Resistances 38 | . . . . . . . . . . . 38 . . . . . . . . . . . . . . . . . . . . . . Regen/Repaired (Parts) 1254 | . . . 11 . . . 76 . . . 218 . 15 . . . . . . . 38 . 188 . . . . 291 . . 152 . 265 Core Remaining (%) 58 | 100 . 61 . . . 80 . . . 28 . . . . . . 10 . . . . 50 . . . . 90 . 97 . . 28 41 Volleys Fired 1253 | 34 33 14 78 . . 17 98 86 9 . 102 6 83 42 43 . 21 159 24 22 40 7 50 35 7 8 28 27 77 38 51 9 5 Largest 3 | 2 2 2 2 . . 2 2 2 2 . 2 1 2 2 1 . 2 2 2 2 2 1 2 2 2 1 1 1 2 2 3 2 1 Hottest 353 | 40 130 130 130 . . 130 130 123 50 . 200 85 176 173 88 . 173 178 178 178 200 90 128 150 128 90 90 90 201 233 353 233 120 Shots Fired 1921 | 68 64 26 151 . . 34 195 170 15 . 185 5 131 48 42 . 29 248 28 27 59 7 61 45 8 8 29 27 82 45 70 9 5 Gun 1033 | 68 62 24 144 . . 34 194 149 15 . 112 . 78 7 17 . 5 69 5 5 12 . 21 9 1 . . . 2 . . . . Cannon 797 | . . . . . . . . 19 . . 66 5 42 29 25 . 22 179 23 22 26 3 40 30 4 8 28 27 80 38 70 9 2 Launcher 86 | . 2 2 7 . . . 1 2 . . 6 . 11 12 . . 2 . . . 17 4 . 6 3 . 1 . . 7 . . 3 Special 5 | . . . . . . . . . . . 1 . . . . . . . . . 4 . . . . . . . . . . . . Kinetic 422 | 68 12 . . . . . . 68 15 . 84 . . . . . 7 125 . . 12 . 21 9 1 . . . . . . . . Thermal 1325 | . 50 24 144 . . 34 194 100 . . 78 5 120 36 42 . 20 110 28 27 2 3 28 30 4 8 28 27 78 38 57 9 1 Explosive 69 | . 2 2 7 . . . 1 2 . . 6 . 11 . . . . . . . 17 4 . 6 3 . 1 . . 4 . . 3 Electromagnetic 76 | . . . . . . . . . . . 16 . . 12 . . 2 13 . . . . 12 . . . . . 4 3 13 . 1 Entropic 24 | . . . . . . . . . . . . . . . . . . . . . 24 . . . . . . . . . . . . Robot Hit Streak 32 | 8 11 15 22 . . 21 32 17 11 . 12 . 21 7 5 . 7 11 13 14 10 3 9 7 8 16 1 . 6 17 6 9 3 Robot Miss Streak 8 | 2 8 8 7 . . 4 7 3 2 . 5 . 4 4 1 . 2 2 . 1 2 . 3 1 . . 1 2 3 2 3 1 2 Penetration Max 1 | . . . . . . . . . . . . . . . . . . 1 . . 1 . 1 . . . . . . . . . . Secondary Targets 16 | . 2 . 1 . . 2 5 2 . . 2 . . . . . . . . . . . 2 . . . . . . . . . . Max Gunslinging Chain 1 | . 1 . 1 . . 1 1 1 . . 1 . . . . . . . . . . . 1 . . . . . . . . . . Shots Hit Robots 1188 | 46 54 22 134 . 6 28 166 119 15 1 147 . 79 7 14 . 13 140 6 3 32 2 21 15 3 8 2 . 30 23 40 7 5 Core Hits 991 | 15 79 32 189 . . 49 194 42 6 . 120 . 45 7 4 . 9 57 2 2 45 6 12 6 5 6 3 . 11 22 12 1 10 Critical Kills 25 | . . . . . . . . 1 . . 1 . . . . . 2 18 . . . . 1 . . . . . 2 . . . . Critical Parts Destroyed 44 | . . . . . . . . . . . 9 . 3 . . . 1 30 . . . . . 1 . . . . . . . . . Critical Strikes 103 | . . . . . . . 6 4 . . 10 . 13 . . . 4 48 . 1 13 . 1 1 . . . . 2 . . . . Burn 21 | . . . . . . . 6 3 . . . . 10 . . . 1 . . 1 . . . . . . . . . . . . . Meltdown 2 | . . . . . . . . . . . . . . . . . . . . . . . . . . . . . 2 . . . . Destroy 54 | . . . . . . . . 1 . . . . . . . . 3 48 . . . . 1 1 . . . . . . . . . Smash 13 | . . . . . . . . . . . 10 . 3 . . . . . . . . . . . . . . . . . . . . Sunder 13 | . . . . . . . . . . . . . . . . . . . . . 13 . . . . . . . . . . . . Melee Attacks 141 | . . . . . 6 . . . 4 1 67 . 27 . . . . . . . . . . . . . . . 11 . 16 . 9 Impact 77 | . . . . . . . . . . . 50 . 27 . . . . . . . . . . . . . . . . . . . . Slashing 56 | . . . . . . . . . 3 . 17 . . . . . . . . . . . . . . . . . 11 . 16 . 9 Piercing . | . . . . . . . . . . . . . . . . . . . . . . . . . . . . . . . . . . Sneak Attacks 26 | . . . . . 6 . . . 3 1 7 . 2 . . . . . . . . . . . . . . . 6 . . . 1 Combat Hostiles 1 | . . . . . . . . . . . . . . . . . . . . . . . . . . . . . . . . . 1 Follow-up Attacks . | . . . . . . . . . . . . . . . . . . . . . . . . . . . . . . . . . . Damage Inflicted 45836 | 362 945 410 2832 . . 490 3193 2751 383 . 7054 . 4295 338 399 . 458 4211 162 102 6898 510 841 897 650 276 307 . 1809 1543 1900 403 1417 Guns 15546 | 362 749 344 1957 . . 464 2963 2093 195 . 1360 . 1591 118 399 . 147 1692 84 60 254 . 481 230 . . . . 3 . . . . Cannons 11378 | . . . . . . . . 316 . . 1759 . 402 91 . . 196 2289 78 42 1418 . 297 301 34 276 71 . 990 701 1668 394 55 Explosions 14739 | . 172 33 785 . . . 139 331 . . 2191 . 1749 129 . . 115 167 . . 5226 510 63 366 616 . 236 . . 842 . . 1069 Melee 3663 | . . . . . . . . . 178 . 1627 . 553 . . . . . . . . . . . . . . . 816 . 232 . 257 Ramming 510 | . 24 33 90 . . 26 91 11 10 . 117 . . . . . . 63 . . . . . . . . . . . . . 9 36 Kinetic 5728 | 362 69 . . . . . . 888 195 . 989 . . . . . 81 2179 . . 254 . 481 230 . . . . . . . . . Thermal 20034 | . 680 344 1957 . . 464 2963 1521 . . 2545 . 2622 209 399 . 262 1506 162 102 143 . 63 301 34 276 71 . 942 701 1318 394 55 Explosive 12564 | . 172 33 710 . . . 139 331 . . 1565 . 1120 . . . . 167 . . 5155 510 . 366 616 . 236 . . 457 . . 987 Electromagnetic 1991 | . . . 75 . . . . . . . 211 . . 129 . . 115 296 . . . . 297 . . . . . 51 385 350 . 82 Impact 2180 | . . . . . . . . . . . 1627 . 553 . . . . . . . . . . . . . . . . . . . . Slashing 1483 | . . . . . . . . . 178 . . . . . . . . . . . . . . . . . . . 816 . 232 . 257 Piercing . | . . . . . . . . . . . . . . . . . . . . . . . . . . . . . . . . . . Entropic 1346 | . . . . . . . . . . . . . . . . . . . . . 1346 . . . . . . . . . . . . Highest Corruption 64 | . 1 1 2 3 3 3 . 1 1 . 9 21 24 24 24 24 24 18 10 10 10 . 1 5 5 5 5 4 10 3 57 64 . Average Corruption 9 | . 1 1 1 2 3 3 . 1 1 . 6 16 22 24 24 24 24 12 10 10 10 . 1 4 5 5 5 4 6 2 25 60 . Corruption Purged 10 | . . . . . . . . . . . . . . . . . . 10 . . . . . . . . . . . . . . . Corruption Blocked 4 | . . . . . . . . . . . . . . . . . . . . . . . . . . . . . . . . . 4 Effects 572 | . . 7 7 16 11 22 . 14 10 . 49 8 75 35 38 5 27 66 29 26 1 . 1 14 7 3 16 7 28 11 32 7 . Message Errors 144 | . . 1 1 5 3 8 . 5 5 . 14 . 19 10 9 2 5 16 5 7 . . . 3 . . 1 4 6 2 11 2 . Matter Fused 133 | . . 2 2 6 1 5 . 3 3 . 11 2 14 7 10 . 10 15 8 6 . . 1 3 4 2 2 . 9 1 5 1 . Heat Flow Errors 57 | . . 2 . 1 4 2 . 2 1 . 6 . 9 2 1 1 3 9 2 4 . . . . . . 3 . 2 2 . 1 . Energy Discharges 57 | . . 2 1 4 . 3 . 2 . . 7 1 5 2 6 . 3 3 5 2 1 . . 3 1 . 1 1 3 . 1 . . Parts Rejected 8 | . . . . . . . . . . . . 2 1 . . . . 1 . . . . . . . . . 1 . 1 2 . . Parts Fused 9 | . . . . . . 2 . . . . . . 2 2 . . . 1 . 1 . . . . . . . . 1 . . . . Data Loss (minor) 71 | . . . 3 . 2 1 . 2 1 . 4 . 13 8 7 1 4 7 3 1 . . . . 1 1 4 . 3 1 3 1 . Data Loss (major) 28 | . . . . . 1 1 . . . . 2 1 4 1 2 1 . 4 1 . . . . 2 1 . 2 1 2 1 1 . . Misfires 25 | . . . . . . . . . . . 3 . 3 1 1 . 1 4 3 3 . . . 1 . . 1 . 1 1 2 . . Alerts 11 | . . . . . . . . . . . 2 . 1 1 . . . . 2 . . . . 1 . . 2 . 1 1 . . . Misdirections 4 | . . . . . . . . . . . . 1 . . . . . . . 1 . . . . . . . . . . 1 1 . Weapon Failures 25 | . . . . . . . . . . . . 1 4 1 2 . 1 6 . 1 . . . 1 . . . . . 1 6 1 . Overload Shots . | . . . . . . . . . . . . . . . . . . . . . . . . . . . . . . . . . . Overflow Damage 2480 | . . 12 71 . . . 28 . 24 . 829 . 485 26 . . 15 . 36 . 293 . . 23 . . 30 . 262 59 65 43 179 Projectiles 333 | . . . . . . . . . . . . . . 26 . . 15 . 36 . 19 . . 23 . . . . 62 44 65 43 . Explosions 831 | . . 12 71 . . . 28 . . . 73 . 251 . . . . . . . 274 . . . . . 30 . . 15 . . 77 Melee 1316 | . . . . . . . . . 24 . 756 . 234 . . . . . . . . . . . . . . . 200 . . . 102 Knockbacks 25 | . 1 . 2 . . . 1 . . . 7 . 1 . . . . 13 . . . . . . . . . . . . . . . Impact 13 | . 1 . 2 . . . 1 . . . 7 . 1 . . . . 1 . . . . . . . . . . . . . . . Kinetic 12 | . . . . . . . . . . . . . . . . . . 12 . . . . . . . . . . . . . . . Secondary . | . . . . . . . . . . . . . . . . . . . . . . . . . . . . . . . . . . Self-Inflicted Damage 624 | . 30 . 43 . . . . 68 . . 201 . 159 . . . . 8 . . . . . . . . 83 . . 10 . 4 18 Shots 13 | . 1 . 1 . . . . 1 . . 4 . 4 . . . . . . . . . . . . . 1 . . 1 . . . Rammed 32 | . 6 5 8 . . 2 6 . . . . . . . . . . 2 . . . . . . . . . . . . . 1 2 Targets Rammed 55 | . 7 6 9 . . 3 10 2 4 . 6 . . . . . . 5 . . . . . . . . . . . . . 1 2 Kicked 19 | . . . . . . . 4 2 4 . 6 . . . . . . 3 . . . . . . . . . . . . . . . Crushed 4 | . 1 1 1 . . 1 . . . . . . . . . . . . . . . . . . . . . . . . . . . Highest Temperature 705 | . 135 232 14 157 227 210 448 192 87 . 442 . 225 228 110 232 238 294 182 173 131 . 3 200 11 . 183 112 403 437 705 149 48 Average Temperature 83 | . 21 50 4 92 87 64 29 50 44 . 107 . 55 127 45 142 65 65 74 71 43 . 2 62 6 . 47 33 86 102 247 98 18 Received Heat Transfer 3282 | . 177 129 129 . . 45 693 576 66 . 599 . 243 40 18 . 24 306 . 27 62 . 64 . 27 . . 8 . 40 9 . . Effects 45 | . . . . . . . . . . . 7 . . . . . . 3 . . . . . . . . . . . 3 32 . . Shutdowns 13 | . . . . . . . . . . . 2 . . . . . . . . . . . . . . . . . . . 11 . . Energy Bleed 2 | . . . . . . . . . . . 1 . . . . . . . . . . . . . . . . . . . 1 . . Interference 13 | . . . . . . . . . . . 3 . . . . . . 3 . . . . . . . . . . . 3 4 . . Matter Decay 3 | . . . . . . . . . . . . . . . . . . . . . . . . . . . . . . . 3 . . Damage (minor) 2 | . . . . . . . . . . . 1 . . . . . . . . . . . . . . . . . . . 1 . . Damage (major) 9 | . . . . . . . . . . . . . . . . . . . . . . . . . . . . . . . 9 . . Damage (core) 3 | . . . . . . . . . . . . . . . . . . . . . . . . . . . . . . . 3 . . Siege Activations 1 | . . . . . . . . . . . . . . . . . . 1 . . . . . . . . . . . . . . . Total Turns 39 | . . . . . . . . . . . . . . . . . . 39 . . . . . . . . . . . . . . . Longest Duration 39 | . . . . . . . . . . . . . . . . . . 39 . . . . . . . . . . . . . . . Martial Activations . | . . . . . . . . . . . . . . . . . . . . . . . . . . . . . . . . . . Shielding Activations . | . . . . . . . . . . . . . . . . . . . . . . . . . . . . . . . . . . Robots Disrupted 3 | . . . . . . . . . . . . . . . . . . . . . 1 . . . . . . . . 1 . . 1 Combat Hostiles 3 | . . . . . . . . . . . . . . . . . . . . . 1 . . . . . . . . 1 . . 1 Robots Corrupted 13 | . . . 1 . . . . . . . 5 . 2 . . . . . . . . . . . . . . . . 2 3 . . Combat Hostiles 8 | . . . . . . . . . . . 2 . 1 . . . . . . . . . . . . . . . . 2 3 . . Parts Fried 21 | . . . 2 . . . . . . . 10 . . . . . . 2 . . . . 1 . . . . . . 5 . . 1 Impact Corruptions 30 | . . . 1 . . . . . . . 23 . 6 . . . . . . . . . . . . . . . . . . . . Robots Melted 5 | . . . . . . . . 2 . . . . 1 . . . . . . . . . . . . . . . 2 . . . . Combat Hostiles 5 | . . . . . . . . 2 . . . . 1 . . . . . . . . . . . . . . . 2 . . . . Parts Melted 42 | . . 1 2 . . . 4 7 . . 2 . 17 . . . 2 2 . . . . . . . . . . 4 . 1 . . Heat Transferred 25398 | . 855 435 2475 . . 565 4752 2960 . . 2807 . 4544 311 700 . 498 1211 150 200 124 . 50 259 37 184 74 . 703 592 616 259 37 Parts Sabotaged . | . . . . . . . . . . . . . . . . . . . . . . . . . . . . . . . . . . Parts Stolen . | . . . . . . . . . . . . . . . . . . . . . . . . . . . . . . . . . . Parts Stripped . | . . . . . . . . . . . . . . . . . . . . . . . . . . . . . . . . . . Power Chain Reactions 2 | . . . . . . . . . . . 1 . . . . . . . . . 1 . . . . . . . . . . . . Alert | -11 -10 -10 -9 -9 -9 -8 -8 -8 -8 -8 -6 -6 -6 -6 -6 -6 -5 -5 -5 -5 -5 -4 -4 -4 -4 -4 -3 -3 -3 -2 -2 -2 -1 ------- Run | Yrd Mat Min Mat Min Exi Min Mat Sto Rec Scr Fac Was Fac Low Low Dat Pro Fac Upp Upp War Pro Fac Upp Upp Zhi Pro Res Tes Res Qua Frg Acc Maximum Alert Level 3 | . 1 . 2 1 . . 1 1 . . 3 1 3 . . . . 1 . . . . . . . . . . . 2 1 . . Low Security (%) 67 | 100 80 100 13 95 . 100 89 52 100 . 51 . 55 . . . . 46 . . . . 100 . . . . 100 100 52 7 100 100 Level 1 22 | . 19 . 56 4 . . 10 47 . . 10 100 12 . . . . 53 . . . . . . . . . . . 28 92 . . Level 2 6 | . . . 30 . . . . . . . 28 . . . . . . . . . . . . . . . . . . 19 . . . Level 3 3 | . . . . . . . . . . . 8 . 31 . . . . . . . . . . . . . . . . . . . . Level 4 . | . . . . . . . . . . . . . . . . . . . . . . . . . . . . . . . . . . Level 5 . | . . . . . . . . . . . . . . . . . . . . . . . . . . . . . . . . . . High Security . | . . . . . . . . . . . . . . . . . . . . . . . . . . . . . . . . . . Max Security . | . . . . . . . . . . . . . . . . . . . . . . . . . . . . . . . . . . Peak Influence 1054 | 10 267 146 608 225 . 70 220 379 168 . 1054 368 1028 . . . . 302 . . . . 158 . . . . 8 63 475 321 116 112 Initial 368 | . . 85 . 225 . . . 57 138 . . 368 203 . . . . 47 . . . . 11 . . . . . . 23 256 116 8 Average 165 | 1 82 51 352 37 . 10 80 174 58 . 299 333 394 . . . . 176 . . . . 41 . . . . 1 16 191 265 80 12 Influence Increases 12620 | 35 526 262 1184 . . 225 963 1170 399 . 1760 2 1423 70 10 . 336 949 . 250 589 90 366 100 150 10 10 50 337 641 475 48 190 Destroy 0b10 Robot/C 5980 | . 340 180 640 . . 160 560 580 120 . 800 . 520 60 . . 240 400 . 40 460 80 120 80 80 . . . 80 180 180 20 60 Destroy 0b10 Robot/NC 690 | 35 20 5 115 . . 25 75 45 15 . 115 . 50 . 10 . . 80 . . . . 10 . . 10 10 . 40 10 5 . 15 Destroy Leader 1396 | . 84 40 190 . . 40 170 192 . . 210 . 124 10 . . 40 102 . . . 10 40 20 10 . . . 22 40 20 10 22 Allied During Kill 346 | . . 25 4 . . . . 119 73 . . . . . . . 41 . . . 84 . . . . . . . . . . . . Successful Hack 551 | . 11 . 54 . . . 37 31 11 . 129 . 16 . . . . 81 . . . . 28 . . . . . 30 57 66 . . Select Force Hacks 360 | . 60 . 30 . . . 30 60 180 . . . . . . . . . . . . . . . . . . . . . . . . Disable Machine 945 | . . . 45 . . . 30 75 . . 225 . 240 . . . . 45 . . . . 75 . . . . . 60 . 105 15 30 Anti-Garrison Action 150 | . . . . . . . . . . . . . 150 . . . . . . . . . . . . . . . . . . . . Destroy Structure 1182 | . 11 12 76 . . . 16 53 . . 116 2 203 . . . . 136 . . . . 78 . . . . 50 90 204 84 3 48 Partial Spotted 30 | . . . . . . . . . . . 15 . . . . . . . . . . . . . . . . . 15 . . . . Lose Combat Pursuer 990 | . . . 30 . . . 45 15 . . 150 . 120 . . . 15 105 . 210 45 . 15 . 60 . . . . 150 15 . 15 Influence Decreases 12593 | 35 307 481 606 578 . 225 826 952 754 . 707 765 685 765 343 . 260 860 165 250 252 409 275 167 189 13 10 48 297 226 725 241 177 Entered New Map 2808 | . . 134 . 353 . . . 80 217 . . 685 87 381 64 . . 29 62 . . 337 7 41 9 3 . . 2 19 201 91 6 Time Decay 7886 | 35 307 317 536 225 . 215 476 602 472 . 574 80 538 374 279 . 240 591 103 250 162 72 187 116 170 10 . 48 285 187 334 30 71 Lost Part 900 | . . 10 30 . . 10 50 60 . . 70 . 60 10 . . . 90 . . 10 . 30 10 10 . 10 . 10 20 190 120 100 Lost Ally 307 | . . 20 40 . . . . 60 65 . 22 . . . . . 20 . . . 80 . . . . . . . . . . . . Purge Threat 692 | . . . . . . . 300 150 . . 41 . . . . . . 150 . . . . 51 . . . . . . . . . . Squads Dispatched 101 | . 7 . 5 . . . 4 8 . . 23 . 13 . . . . 14 . 1 . . 7 . . . . 3 5 6 4 . 1 Investigation 41 | . 4 . 2 . . . 2 4 . . 8 . 5 . . . . 6 . . . . 4 . . . . 2 1 3 . . . Extermination 24 | . . . . . . . . . . . 8 . 2 . . . . 5 . . . . 1 . . . . 1 2 1 3 . 1 Reinforcement 25 | . 3 . 3 . . . 2 1 . . 6 . 3 . . . . 2 . . . . . . . . . . 2 2 1 . . Assault 4 | . . . . . . . . . . . 1 . 2 . . . . . . 1 . . . . . . . . . . . . . Garrison 7 | . . . . . . . . 3 . . . . 1 . . . . 1 . . . . 2 . . . . . . . . . . Intercept . | . . . . . . . . . . . . . . . . . . . . . . . . . . . . . . . . . . Searches Triggered . | . . . . . . . . . . . . . . . . . . . . . . . . . . . . . . . . . . Unchained Authorized 3 | . . . . . . . . . . . . . . . . . . . . . . . . . . . . . 1 1 1 . . Data Miner Redirects 5 | . . . . . . . . . . . . . . . . . . 1 . . . . 2 . . . . 1 . 1 . . . Construction Impeded 4 | . . . . . . . . . . . . . 2 . . . . 1 . . . . . . . . . . . 1 . . . Haulers Reinforced 2 | . . . . . . . . . . . 1 . 1 . . . . . . . . . . . . . . . . . . . . Active Scanning Responses . | . . . . . . . . . . . . . . . . . . . . . . . . . . . . . . . . . . Cargo Convoy Interrupts 1 | . . . . . . . . . . . 1 . . . . . . . . . . . . . . . . . . . . . . Stealth | -11 -10 -10 -9 -9 -9 -8 -8 -8 -8 -8 -6 -6 -6 -6 -6 -6 -5 -5 -5 -5 -5 -4 -4 -4 -4 -4 -3 -3 -3 -2 -2 -2 -1 --------- Run | Yrd Mat Min Mat Min Exi Min Mat Sto Rec Scr Fac Was Fac Low Low Dat Pro Fac Upp Upp War Pro Fac Upp Upp Zhi Pro Res Tes Res Qua Frg Acc Distress Signals 25 | . 2 . 4 . . . 4 4 . . 2 . 2 . . . . 1 . . 3 . . . . . . . . 1 1 1 . Communications Jammed 69 | . . . . . . . . . . . . . . . . . . 30 . . . . . . . . . . . . . 26 13 Distress Signals 69 | . . . . . . . . . . . . . . . . . . 30 . . . . . . . . . . . . . 26 13 Times Spotted 549 | . 26 9 46 . . 8 42 38 10 . 63 6 36 6 4 . 8 36 . 21 86 4 18 3 9 . 2 3 11 21 16 7 10 Peak Tracking Total 14 | . 4 3 5 . . 3 5 4 1 . 10 6 6 2 4 . 4 5 . 9 14 2 8 2 4 . 2 2 3 6 4 6 4 Tactical Retreats 41 | . . . 2 . . . 3 1 1 . 6 . 4 . . . 1 6 . 6 2 . 1 . 2 . . . . 4 1 . 1 Traps | -11 -10 -10 -9 -9 -9 -8 -8 -8 -8 -8 -6 -6 -6 -6 -6 -6 -5 -5 -5 -5 -5 -4 -4 -4 -4 -4 -3 -3 -3 -2 -2 -2 -1 ------- Run | Yrd Mat Min Mat Min Exi Min Mat Sto Rec Scr Fac Was Fac Low Low Dat Pro Fac Upp Upp War Pro Fac Upp Upp Zhi Pro Res Tes Res Qua Frg Acc Traps Triggered 23 | . 3 . 4 . . . . 2 . . 2 . 1 . . . . 3 . . . . . . . . . 2 . 4 . . 2 Indirectly 4 | . . . . . . . . . . . . . . . . . . . . . . . . . . . . . . 4 . . . Trap Hack Attempts . | . . . . . . . . . . . . . . . . . . . . . . . . . . . . . . . . . . Triggered . | . . . . . . . . . . . . . . . . . . . . . . . . . . . . . . . . . . Disarmed . | . . . . . . . . . . . . . . . . . . . . . . . . . . . . . . . . . . Reprogrammed . | . . . . . . . . . . . . . . . . . . . . . . . . . . . . . . . . . . Reused . | . . . . . . . . . . . . . . . . . . . . . . . . . . . . . . . . . . Traps Extracted . | . . . . . . . . . . . . . . . . . . . . . . . . . . . . . . . . . . Installed 1 | . . . . . . . . . . . . . . . 1 . . . . . . . . . . . . . . . . . . Triggered . | . . . . . . . . . . . . . . . . . . . . . . . . . . . . . . . . . . Machines | -11 -10 -10 -9 -9 -9 -8 -8 -8 -8 -8 -6 -6 -6 -6 -6 -6 -5 -5 -5 -5 -5 -4 -4 -4 -4 -4 -3 -3 -3 -2 -2 -2 -1 ---------- Run | Yrd Mat Min Mat Min Exi Min Mat Sto Rec Scr Fac Was Fac Low Low Dat Pro Fac Upp Upp War Pro Fac Upp Upp Zhi Pro Res Tes Res Qua Frg Acc Machines Disabled 69 | . . . 3 . . . 2 5 . . 15 . 17 . . . . 3 . . 2 . 5 . . . . . 7 . 7 1 2 Max in Single Turn 8 | . . . 2 . . . 1 1 . . 8 . 7 . . . . 1 . . 2 . 4 . . . . . 1 . 1 1 1 Garrison Access 3 | . . . . . . . . . . . 1 . 1 . . . . 1 . . . . . . . . . . . . . . . Machines Repaired . | . . . . . . . . . . . . . . . . . . . . . . . . . . . . . . . . . . Machines Dismantled . | . . . . . . . . . . . . . . . . . . . . . . . . . . . . . . . . . . Machines Sabotaged . | . . . . . . . . . . . . . . . . . . . . . . . . . . . . . . . . . . Overloaded Fab Kills . | . . . . . . . . . . . . . . . . . . . . . . . . . . . . . . . . . . Hacking | -11 -10 -10 -9 -9 -9 -8 -8 -8 -8 -8 -6 -6 -6 -6 -6 -6 -5 -5 -5 -5 -5 -4 -4 -4 -4 -4 -3 -3 -3 -2 -2 -2 -1 --------- Run | Yrd Mat Min Mat Min Exi Min Mat Sto Rec Scr Fac Was Fac Low Low Dat Pro Fac Upp Upp War Pro Fac Upp Upp Zhi Pro Res Tes Res Qua Frg Acc Machines Accessed 178 | . 8 . 11 1 1 . 11 14 11 8 26 . 11 1 1 4 . 18 1 . 3 . 14 1 . 4 . 6 5 6 10 . 2 Terminals 82 | . 6 . 7 . . . 9 11 5 . 12 . 6 . . . . 4 . . . . 4 . . . . 2 3 4 7 . 2 Fabricators 6 | . . . . . . . . . . . 2 . . . . . . 2 . . . . 2 . . . . . . . . . . Repair Stations 14 | . . . 1 . . . 1 . . . 2 . 1 . . . . 3 . . . . 4 . . . . 2 . . . . . Recycling Units 31 | . 2 . 1 . . . 1 2 6 . 6 . 4 . . . . 4 . . . . 3 . . . . 1 . 1 . . . Scanalyzers 12 | . . . 2 . . . . . . . 2 . . . . . . 3 . . . . . . . . . . 2 1 2 . . Garrison Access 8 | . . . . . . . . 1 . . 2 . . . . . . 2 . . . . 1 . . . . 1 . . 1 . . Total Hacks 519 | . 27 . 40 1 1 . 47 42 26 55 60 . 19 1 1 25 . 57 1 . 11 . 35 1 . 17 . 9 12 12 17 . 2 Successful 327 | . 15 . 31 1 1 . 24 18 18 55 27 . 7 1 1 25 . 32 1 . 11 . 16 1 . 17 . 4 8 5 8 . . Failed 187 | . 11 . 8 . . . 23 24 7 . 33 . 12 . . . . 24 . . . . 19 . . . . 5 3 7 9 . 2 Catastrophic 34 | . 1 . . . . . 4 4 . . 10 . 3 . . . . 3 . . . . 1 . . . . 2 1 3 1 . 1 Database Lockouts 5 | . 1 . 1 . . . . . 1 . . . . . . . . 1 . . . . . . . . . . 1 . . . . Manual 186 | . 20 . 13 . . . 30 22 21 . 29 . 7 . . . . 11 . . 1 . 17 . . . . 3 4 2 6 . . Terminals 233 | . 20 . 22 . . . 42 36 18 . 32 . 9 . . . . 11 . . . . 16 . . . . 2 5 7 11 . 2 Fabricators 15 | . . . . . . . . . . . 4 . . . . . . 6 . . . . 5 . . . . . . . . . . Repair Stations 33 | . . . 2 . . . 3 . . . 6 . 3 . . . . 8 . . . . 8 . . . . 3 . . . . . Recycling Units 56 | . 7 . 2 . . . 2 5 8 . 12 . 7 . . . . 5 . . . . 5 . . . . 1 . 2 . . . Scanalyzers 55 | . . . 14 . . . . . . . 3 . . . . . . 23 . . . . . . . . . . 7 3 5 . . Garrison Access 13 | . . . . . . . . 1 . . 3 . . . . . . 4 . . . . 1 . . . . 3 . . 1 . . Terminal Hacks 179 | . 5 . 7 1 1 . 11 8 4 55 10 . 1 1 1 25 . 5 1 . 11 . 6 1 . 17 . . 1 4 3 . . Record 69 | . . . . . 1 . . 1 . 47 . . . . . 11 . . . . 4 . . . . 5 . . . . . . . Part Schematic 14 | . . . . . . . . . . . 2 . . . . 8 . . . . . . . . . 4 . . . . . . . Robot Schematic 3 | . . . . . . . . . . . . . . . . 3 . . . . . . . . . . . . . . . . . Robot Analysis 20 | . 1 . 1 . . . 4 1 1 7 1 . . . . . . . . . . . . . . 4 . . . . . . . Prototype ID Bank 25 | . 2 . 2 . . . 2 1 2 . 2 . . . . 3 . 1 . . 6 . . . . 4 . . . . . . . Open Door 8 | . . . . 1 . . . 2 . . . . . 1 1 . . . 1 . 1 . . 1 . . . . . . . . . Branch Access Points 3 | . . . . . . . 1 . . . . . . . . . . 1 . . . . . . . . . . . 1 . . . Terminal Index 5 | . 1 . . . . . . . . . 1 . . . . . . 1 . . . . 1 . . . . . 1 . . . . Fabricator Index 1 | . . . . . . . . . . . . . . . . . . . . . . . 1 . . . . . . . . . . Recycling Unit Index 1 | . . . . . . . . . . . . . . . . . . . . . . . 1 . . . . . . . . . . Alert Level 4 | . . . 1 . . . . 2 . . . . . . . . . . . . . . . . . . . . . 1 . . . Unreport Threat 7 | . . . . . . . 2 1 . . 2 . . . . . . 1 . . . . 1 . . . . . . . . . . Locate Traps 3 | . . . . . . . . . . . . . . . . . . . . . . . 1 . . . . . . 1 1 . . Maintenance Status 2 | . . . 1 . . . . . . . . . . . . . . . . . . . . . . . . . . 1 . . . Surveillance Status 1 | . . . . . . . . . . . . . . . . . . 1 . . . . . . . . . . . . . . . Patrol Status 1 | . . . . . . . . . . . . . . . . . . . . . . . . . . . . . . . 1 . . Hauler Manifests 7 | . . . 1 . . . 1 . 1 . 2 . 1 . . . . . . . . . . . . . . . . . 1 . . Registered Components 3 | . 1 . 1 . . . . . . . . . . . . . . . . . . . 1 . . . . . . . . . . Registered Prototypes 1 | . . . . . . . 1 . . . . . . . . . . . . . . . . . . . . . . . . . . Proto ID Catalog 1 | . . . . . . . . . . 1 . . . . . . . . . . . . . . . . . . . . . . . Fabricator Hacks 4 | . . . . . . . . . . . . . . . . . . 3 . . . . 1 . . . . . . . . . . Network Status 2 | . . . . . . . . . . . . . . . . . . 1 . . . . 1 . . . . . . . . . . Load Schematic 1 | . . . . . . . . . . . . . . . . . . 1 . . . . . . . . . . . . . . . Build 1 | . . . . . . . . . . . . . . . . . . 1 . . . . . . . . . . . . . . . Repair Station Hacks 18 | . . . 2 . . . . . . . 4 . 2 . . . . 3 . . . . 5 . . . . 2 . . . . . Scan Component 10 | . . . 1 . . . . . . . 2 . 1 . . . . 2 . . . . 3 . . . . 1 . . . . . Repair 8 | . . . 1 . . . . . . . 2 . 1 . . . . 1 . . . . 2 . . . . 1 . . . . . Recycling Unit Hacks 5 | . 2 . 1 . . . 1 1 . . . . . . . . . . . . . . . . . . . . . . . . . Retrieve Components 5 | . 2 . 1 . . . 1 1 . . . . . . . . . . . . . . . . . . . . . . . . . Scanalyzer 37 | . . . 13 . . . . . . . 1 . . . . . . 14 . . . . . . . . . . 5 1 3 . . Insert Component 15 | . . . 5 . . . . . . . . . . . . . . 7 . . . . . . . . . . 2 . 1 . . Analyze 14 | . . . 6 . . . . . . . . . . . . . . 6 . . . . . . . . . . 2 . . . . Retrieve Study 8 | . . . 2 . . . . . . . 1 . . . . . . 1 . . . . . . . . . . 1 1 2 . . Garrison Access Hacks 2 | . . . . . . . . . . . 1 . . . . . . 1 . . . . . . . . . . . . . . . Seal Access 2 | . . . . . . . . . . . 1 . . . . . . 1 . . . . . . . . . . . . . . . Unauthorized Hacks 82 | . 8 . 8 . . . 12 9 14 . 11 . 4 . . . . 6 . . . . 4 . . . . 2 2 . 2 . . Terminals 47 | . 6 . 7 . . . 10 6 8 . 6 . . . . . . 1 . . . . . . . . . . 1 . 2 . . Track 5 | . . . . . . . . . . . 2 . . . . . . . . . . . . . . . . . 1 . 2 . . Botnet 12 | . 1 . 2 . . . 1 1 3 . 3 . . . . . . 1 . . . . . . . . . . . . . . . Operators 2 | . . . . . . . 1 . . . 1 . . . . . . . . . . . . . . . . . . . . . . Skim 28 | . 5 . 5 . . . 8 5 5 . . . . . . . . . . . . . . . . . . . . . . . . Fabricators 2 | . . . . . . . . . . . . . . . . . . 1 . . . . 1 . . . . . . . . . . Haulers 1 | . . . . . . . . . . . . . . . . . . 1 . . . . . . . . . . . . . . . Recompile 1 | . . . . . . . . . . . . . . . . . . . . . . . 1 . . . . . . . . . . Repair Stations 2 | . . . . . . . 1 . . . . . . . . . . . . . . . . . . . . 1 . . . . . Patch 2 | . . . . . . . 1 . . . . . . . . . . . . . . . . . . . . 1 . . . . . Recycling Units 29 | . 2 . 1 . . . 1 2 6 . 5 . 4 . . . . 4 . . . . 3 . . . . 1 . . . . . Tunnel 12 | . 2 . 1 . . . 1 2 6 . . . . . . . . . . . . . . . . . . . . . . . . Fedlink 17 | . . . . . . . . . . . 5 . 4 . . . . 4 . . . . 3 . . . . 1 . . . . . Scanalyzers 1 | . . . . . . . . . . . . . . . . . . . . . . . . . . . . . 1 . . . . Researchers 1 | . . . . . . . . . . . . . . . . . . . . . . . . . . . . . 1 . . . . Garrison Access 1 | . . . . . . . . 1 . . . . . . . . . . . . . . . . . . . . . . . . . Reprogram 1 | . . . . . . . . 1 . . . . . . . . . . . . . . . . . . . . . . . . . Data Cores Recovered 2 | . . . 1 . . . . . . . . . . . . . . 1 . . . . . . . . . . . . . . . Used . | . . . . . . . . . . . . . . . . . . . . . . . . . . . . . . . . . . Hacking Detections 123 | . 6 . 10 . . . 10 11 6 . 21 . 8 . . . . 14 . . . . 11 . . . . 4 4 6 10 . 2 Full Trace Events 10 | . . . 1 . . . . 1 . . 2 . 1 . . . . 2 . . . . . . . . . . 1 2 . . . Feedback Events 3 | . . . 1 . . . . . . . 1 . . . . . . . . . . . . . . . . . . 1 . . . Corruption 3 | . . . 1 . . . . . . . 1 . . . . . . . . . . . . . . . . . . 1 . . . Feedback Blocked . | . . . . . . . . . . . . . . . . . . . . . . . . . . . . . . . . . . Robot Schematics Acquired 3 | . . . . . . . . . . . . . . . . 3 . . . . . . . . . . . . . . . . . Robots Built . | . . . . . . . . . . . . . . . . . . . . . . . . . . . . . . . . . . Authchips . | . . . . . . . . . . . . . . . . . . . . . . . . . . . . . . . . . . Time . | . . . . . . . . . . . . . . . . . . . . . . . . . . . . . . . . . . Total Robot Build Rating . | . . . . . . . . . . . . . . . . . . . . . . . . . . . . . . . . . . Part Schematics Acquired 27 | . . . 5 . . . . . . . 2 . . . . 8 . 4 . . . . . . . 4 . . 1 . 3 . . Parts Built 2 | . . . . . . . . . . . . . . . . . . 2 . . . . . . . . . . . . . . . Authchips . | . . . . . . . . . . . . . . . . . . . . . . . . . . . . . . . . . . Time 53 | . . . . . . . . . . . . . . . . . . 53 . . . . . . . . . . . . . . . Total Part Build Rating 12 | . . . . . . . . . . . . . . . . . . 12 . . . . . . . . . . . . . . . Part Studies Acquired 8 | . . . 2 . . . . . . . 1 . . . . . . 1 . . . . . . . . . . 1 1 2 . . Parts Repaired 8 | . . . 1 . . . . . . . 2 . 1 . . . . 1 . . . . 2 . . . . 1 . . . . . Time 544 | . . . 136 . . . . . . . 121 . 86 . . . . 39 . . . . 134 . . . . 28 . . . . . Parts Recycled . | . . . . . . . . . . . . . . . . . . . . . . . . . . . . . . . . . . Recycled Matter . | . . . . . . . . . . . . . . . . . . . . . . . . . . . . . . . . . . Retrieved Matter . | . . . . . . . . . . . . . . . . . . . . . . . . . . . . . . . . . . Retrieved Components 31 | . 12 . 10 . . . 9 . . . . . . . . . . . . . . . . . . . . . . . . . . Parts Scanalyzed 12 | . . . 5 . . . . . . . . . . . . . . 6 . . . . . . . . . . 1 . . . . Part Schematics Acquired 10 | . . . 5 . . . . . . . . . . . . . . 4 . . . . . . . . . . 1 . . . . Parts Damaged 4 | . . . 1 . . . . . . . . . . . . . . 3 . . . . . . . . . . . . . . . Bothacking | -11 -10 -10 -9 -9 -9 -8 -8 -8 -8 -8 -6 -6 -6 -6 -6 -6 -5 -5 -5 -5 -5 -4 -4 -4 -4 -4 -3 -3 -3 -2 -2 -2 -1 ------------ Run | Yrd Mat Min Mat Min Exi Min Mat Sto Rec Scr Fac Was Fac Low Low Dat Pro Fac Upp Upp War Pro Fac Upp Upp Zhi Pro Res Tes Res Qua Frg Acc Used RIF Installer . | . . . . . . . . . . . . . . . . . . . . . . . . . . . . . . . . . . Robots Hacked 8 | . . . . . 5 . . . 1 1 1 . . . . . . . . . . . . . . . . . . . . . . Non-combat 4 | . . . . . 3 . . . . . 1 . . . . . . . . . . . . . . . . . . . . . . Combat 4 | . . . . . 2 . . . 1 1 . . . . . . . . . . . . . . . . . . . . . . . Robot Hacks Applied 8 | . . . . . 5 . . . 1 1 1 . . . . . . . . . . . . . . . . . . . . . . parse_system 7 | . . . . . 5 . . . 1 1 . . . . . . . . . . . . . . . . . . . . . . . find_chute 1 | . . . . . . . . . . . 1 . . . . . . . . . . . . . . . . . . . . . . Relay Couplers Released 1 | . . . . . . . . . . . . . 1 . . . . . . . . . . . . . . . . . . . . Machine Destruction 1 | . . . . . . . . . . . . . 1 . . . . . . . . . . . . . . . . . . . . Fabnet Peak Effective % . | . . . . . . . . . . . . . . . . . . . . . . . . . . . . . . . . . . Robots Rewired 15 | . . . . . . . . . 10 . . . . . . . . . . . 5 . . . . . . . . . . . . Allies Hacked . | . . . . . . . . . . . . . . . . . . . . . . . . . . . . . . . . . . Hacks Repelled . | . . . . . . . . . . . . . . . . . . . . . . . . . . . . . . . . . . Allies | -11 -10 -10 -9 -9 -9 -8 -8 -8 -8 -8 -6 -6 -6 -6 -6 -6 -5 -5 -5 -5 -5 -4 -4 -4 -4 -4 -3 -3 -3 -2 -2 -2 -1 -------- Run | Yrd Mat Min Mat Min Exi Min Mat Sto Rec Scr Fac Was Fac Low Low Dat Pro Fac Upp Upp War Pro Fac Upp Upp Zhi Pro Res Tes Res Qua Frg Acc Total Allies 32 | . . 3 . . . . . 12 10 . . 1 . . . . 1 . . . 5 . . . . . . . . . . . . Largest Group 16 | . . 3 2 . . . . 10 16 9 9 1 . . . . 1 . . . 5 . . . . . . . . . . . . Highest-Rated Group 267 | . . 40 32 . . . . 173 250 131 131 31 . . . . 96 . . . 267 . . . . . . . . . . . . Highest-Rated Ally 96 | . . 16 16 . . . . 29 29 27 27 31 . . . . 96 . . . 64 . . . . . . . . . . . . Total Orders 2 | . . . . . . . . . . . 1 . . . . . . . . . 1 . . . . . . . . . . . . STAY 1 | . . . . . . . . . . . . . . . . . . . . . 1 . . . . . . . . . . . . EXPLORE 1 | . . . . . . . . . . . 1 . . . . . . . . . . . . . . . . . . . . . . Ally Attacks 173 | . . 15 16 . . . . 47 31 . 15 13 . . . . 27 . . . 9 . . . . . . . . . . . . Total Damage 2960 | . . 152 168 . . . . 638 387 . 165 211 . . . . 828 . . . 411 . . . . . . . . . . . . Kills 22 | . . 4 1 . . . . 6 4 . 1 . . . . . 5 . . . 1 . . . . . . . . . . . . Allies Corrupted . | . . . . . . . . . . . . . . . . . . . . . . . . . . . . . . . . . . Allies Melted 2 | . . . . . . . . . 1 . . . . . . . . . . . 1 . . . . . . . . . . . . Intel | -11 -10 -10 -9 -9 -9 -8 -8 -8 -8 -8 -6 -6 -6 -6 -6 -6 -5 -5 -5 -5 -5 -4 -4 -4 -4 -4 -3 -3 -3 -2 -2 -2 -1 ------- Run | Yrd Mat Min Mat Min Exi Min Mat Sto Rec Scr Fac Was Fac Low Low Dat Pro Fac Upp Upp War Pro Fac Upp Upp Zhi Pro Res Tes Res Qua Frg Acc Active Infowar (turns) 18423 | 19 92 . . . . . 478 . . . 3113 160 1526 862 813 91 582 2034 872 663 1542 628 669 471 347 153 461 436 947 403 678 69 314 Optics 9315 | . . . . . . . . . . . 160 . . . . . . 1145 872 663 1542 628 669 471 347 153 461 436 947 403 418 . . Sensors 11053 | . . . . . . . . . . . 2 . 317 729 813 90 482 1393 869 628 680 585 581 401 324 150 448 421 901 322 591 28 298 IFF 110 | . . . . . . . . . . . . . 106 . . . . . . . . . . . . . . . 2 . 2 . . Structural 7495 | . . . . . . . . . . . 13 . 2 580 . . 12 865 858 499 682 589 18 409 291 43 414 414 903 282 580 41 . Seismic 589 | 19 92 . . . . . 478 . . . . . . . . . . . . . . . . . . . . . . . . . . T.N.C. 3407 | . . . . . . . . . . . 2121 160 1126 . . . . . . . . . . . . . . . . . . . . Machine Analysis 1534 | . . . . . . . . . . . 1534 . . . . . . . . . . . . . . . . . . . . . . Cloaking 301 | . . . . . . . . . . . . . . . . . . . . . . . . . . . . . . . 257 44 . Jamming 3701 | . . . . . . . . . . . 401 . 159 270 813 91 582 774 . . . . . . . . . . . . 228 69 314 Robot Analysis Total 20 | . 1 . 1 . . . 4 1 1 7 1 . . . . . . . . . . . . . . 4 . . . . . . . Derelict Logs Recovered 17 | . . 1 . 2 . . . . . . . . . 1 2 . 2 . 2 2 . 1 . 2 2 . . . . . . . . Drone Launches 3 | . . . . . . . . . . . 3 . . . . . . . . . . . . . . . . . . . . . . Drone Recoveries . | . . . . . . . . . . . . . . . . . . . . . . . . . . . . . . . . . . Exploration | -11 -10 -10 -9 -9 -9 -8 -8 -8 -8 -8 -6 -6 -6 -6 -6 -6 -5 -5 -5 -5 -5 -4 -4 -4 -4 -4 -3 -3 -3 -2 -2 -2 -1 ------------- Run | Yrd Mat Min Mat Min Exi Min Mat Sto Rec Scr Fac Was Fac Low Low Dat Pro Fac Upp Upp War Pro Fac Upp Upp Zhi Pro Res Tes Res Qua Frg Acc Turns Passed 32383 | 180 864 1072 1833 1409 669 1096 2126 2049 1545 1458 3161 160 1527 862 813 91 582 2147 872 663 1542 628 669 471 347 153 461 436 947 403 745 69 333 Spaces Moved 22890 | 53 441 632 874 598 409 624 949 820 700 1139 1931 122 1065 633 626 82 392 1296 851 619 1165 427 887 586 583 218 673 635 945 547 893 87 388 Core 30 | 3 . . . . . . . . . . . . . . . . . . . . . . . . . . . . . . . . 27 Treads 4362 | 50 441 632 874 598 409 624 517 . . . . . . . . . . 217 . . . . . . . . . . . . . . . Legs 5314 | . . . . . . . 432 820 700 1139 1782 . . . . . 64 377 . . . . . . . . . . . . . . . Wheels 1726 | . . . . . . . . . . . . . 57 633 626 82 328 . . . . . . . . . . . . . . . . Hover 11458 | . . . . . . . . . . . 149 122 1008 . . . . 702 851 619 1165 427 887 586 583 218 673 635 945 547 893 87 361 Flight . | . . . . . . . . . . . . . . . . . . . . . . . . . . . . . . . . . . Fastest Speed 25 | 50 160 160 160 160 160 160 160 190 125 125 114 114 58 108 105 105 105 36 48 36 48 128 42 49 49 46 51 48 33 25 32 37 41 Average Speed 109 | 153 160 160 160 160 160 160 181 190 185 125 122 114 97 108 106 105 120 105 93 85 103 128 52 49 49 49 51 51 53 45 44 53 62 Slowest Speed 320 | 160 160 160 320 160 160 160 245 190 192 125 210 114 155 108 108 120 130 200 109 109 128 128 124 124 124 124 132 131 138 108 146 135 200 Overloaded Moves 145 | . . . . . . . . . . . . . . . . . . 1 . 70 4 . 3 . . . . . 10 28 29 . . Propulsion Burnouts . | . . . . . . . . . . . . . . . . . . . . . . . . . . . . . . . . . . Robots Hopped . | . . . . . . . . . . . . . . . . . . . . . . . . . . . . . . . . . . Potential Cave-ins 30 | . . . . . . . . . . . 4 2 . 6 2 . 2 . . . . . 6 . . . 2 . . . . . 6 Cave-ins Triggered . | . . . . . . . . . . . . . . . . . . . . . . . . . . . . . . . . . . Exploration Rate (%) 67 | 3 93 98 85 99 83 98 88 93 97 83 58 71 42 87 77 69 51 33 84 78 90 81 33 75 81 61 90 22 68 20 88 6 14 Regions Visited 33 Branch Regions 22 Pre-discovered Areas 36 | . 2 2 4 . 1 . 2 5 10 4 1 . . . . 1 . . . . . 1 . . . 3 . . . . . . . Known Exits Taken 25 | . 1 . 1 . . 1 1 . 1 1 . . 1 1 1 1 1 1 1 1 1 1 1 1 1 1 1 1 1 1 . 1 . Unknown Exits Taken 6 | 1 . 1 . 1 1 . . 1 . . . . . . . . . . . . . . . . . . . . . . 1 . . Scrap Searched 35 | . . 3 . 1 . 1 . . . 4 . . . 5 3 . 3 . 2 1 . 5 . 2 2 . 3 . . . . . . Spaces Dug 442 | . . . 11 . . . . . . . 44 3 38 12 7 . 4 32 12 12 71 55 17 30 2 . 11 19 31 11 14 . 6 Terrain Destroyed 1689 | . 11 12 84 . . . 11 45 . . 117 5 228 27 28 . 11 73 23 22 255 130 51 223 58 . 63 26 54 84 27 1 20 Melee 62 | . . . . . . . . . . . 30 . 14 . . . . . . . . . . . . . . . 3 . 9 . 6 Projectile 457 | . . . . . . . . . . . 11 5 37 27 28 . 11 57 23 22 20 3 38 28 4 . 26 26 51 21 18 1 . AOE 1170 | . 11 12 84 . . . 11 45 . . 76 . 177 . . . . 16 . . 235 127 13 195 54 . 37 . . 63 . . 14 Terrain Rammed . | . . . . . . . . . . . . . . . . . . . . . . . . . . . . . . . . . . Walls Destroyed . | . . . . . . . . . . . . . . . . . . . . . . . . . . . . . . . . . . Machines Disabled . | . . . . . . . . . . . . . . . . . . . . . . . . . . . . . . . . . . Actions | -11 -10 -10 -9 -9 -9 -8 -8 -8 -8 -8 -6 -6 -6 -6 -6 -6 -5 -5 -5 -5 -5 -4 -4 -4 -4 -4 -3 -3 -3 -2 -2 -2 -1 --------- Run | Yrd Mat Min Mat Min Exi Min Mat Sto Rec Scr Fac Was Fac Low Low Dat Pro Fac Upp Upp War Pro Fac Upp Upp Zhi Pro Res Tes Res Qua Frg Acc Total 28071 | 94 534 662 1143 1051 422 685 1162 1167 926 1178 2430 136 1366 755 732 86 466 1799 894 726 1444 494 1013 718 629 255 756 715 1277 659 1146 98 453 Wait 2212 | . 29 3 111 450 . 28 46 197 40 10 129 . 96 52 55 . 32 209 9 71 62 44 39 77 27 5 42 . 178 31 109 . 31 Move 22857 | 52 440 631 873 597 408 623 948 819 699 1138 1931 121 1064 632 625 81 391 1295 850 618 1164 426 886 585 582 217 672 634 944 546 892 86 387 Hop . | . . . . . . . . . . . . . . . . . . . . . . . . . . . . . . . . . . Pick Up 247 | 1 11 5 17 2 1 3 17 12 3 11 31 2 18 4 3 . 1 21 1 . 25 1 4 5 1 5 . 10 8 6 15 . 3 Fast Attach 134 | 7 . . 12 . . 1 2 2 1 . 13 2 11 2 1 2 2 15 1 1 14 . 1 . . 4 . 7 8 7 13 . 5 Attach 136 | . 2 1 6 . 2 2 6 8 . . 19 . 10 1 . . 1 16 3 5 7 . 2 3 1 2 1 7 2 4 16 1 8 Detach 67 | . 2 . . . . . . 1 . . 11 . 5 1 . . 1 14 1 5 10 . . . . 2 1 2 2 3 6 . . Swap 481 | . 7 2 19 . 2 1 15 25 7 5 78 2 34 18 . 1 14 39 4 4 36 15 30 12 10 5 11 16 34 15 18 1 1 Drop 263 | . 3 . 18 2 3 . 20 15 5 13 43 3 18 3 4 2 3 19 1 . 30 1 1 1 1 7 1 12 13 9 10 . 2 Fire 1253 | 34 33 14 78 . . 17 98 86 9 . 102 6 83 42 43 . 21 159 24 22 40 7 50 35 7 8 28 27 77 38 51 9 5 Melee 141 | . . . . . 6 . . . 4 1 67 . 27 . . . . . . . . . . . . . . . 11 . 16 . 9 Ram 4 | . . . . . . . . . . . . . . . . . . 1 . . . . . . . . . . . . . 1 2 Kick 19 | . . . . . . . 4 2 4 . 6 . . . . . . 3 . . . . . . . . . . . . . . . Crush 32 | . 7 6 9 . . 3 6 . . . . . . . . . . 1 . . . . . . . . . . . . . . . Escape Stasis 7 | . . . . . . . . . . . . . . . . . . 7 . . . . . . . . . . . . . . . Rewire 217 | . . . . . . 7 . . 154 . . . . . . . . . . . 56 . . . . . . . . . . . . Trap 1 | . . . . . . . . . . . . . . . 1 . . . . . . . . . . . . . . . . . . Miscellaneous . | . . . . . . . . . . . . . . . . . . . . . . . . . . . . . . . . . . Route ------- -11/Scrapyard -10/Materials (discovered 5 exits: *Mat x3 / *Min x2) -10/Mines (discovered 2 exits: *Mat x2) -9/Materials (discovered 5 exits: *Mat x3 / *Min x2) -9/Mines (discovered 4 exits: *Mat x2 / *Exi / [*Zio]) -9/Exiles -8/Mines (discovered 2 exits: *Mat x2) -8/Materials (discovered 5 exits: *Fac x3 / *Sto x2) -8/Storage (discovered 2 exits: *Fac / *Rec) -8/Recycling (discovered 2 exits: *Fac / *Scr) -8/Scraptown (discovered 2 exits: *Fac x2) -6/Factory (discovered 7 exits: *Fac x3 / *Low x2 / Ext x2) -6/Waste -6/Factory (discovered 3 exits: *Fac x2 / *Low) -6/Lower Caves -6/Lower Caves (discovered 2 exits: *Fac / *Dat) -6/Data Miner -5/Proximity Caves -5/Factory (discovered 3 exits: *Fac / *Upp x2) -5/Upper Caves (discovered 2 exits: *Upp / *War) -5/Upper Caves (discovered 2 exits: *Fac / *War) -5/Warlord -4/Proximity Caves -4/Factory (discovered 3 exits: Res / *Upp x2) -4/Upper Caves -4/Upper Caves (discovered 2 exits: *Res / *Zhi) -4/Zhirov -3/Proximity Caves -3/Research (discovered 4 exits: Res / *Arm / *Tes x2) -3/Testing -2/Research (discovered 3 exits: *Acc / *Qua x2) -2/Quarantine (discovered 3 exits: *Acc / [*Sec] / [*Frg]) -2/Protoforge -1/Access To Epsilon Eridani History --------- Turn | Location | Event 34 | -11/Scrapyard | Discovered new exit (range 16) 181 | -11/Scrapyard | Entered Materials 300 | -10/Materials | Build established: Mutant 421 | -10/Materials | Central database locked down 440 | -10/Materials | Discovered new exit (range 4) 591 | -10/Materials | Discovered new exit (range 8) 677 | -10/Materials | Discovered new exit (range 9) 746 | -10/Materials | Learned Storage stockpile data 810 | -10/Materials | Identified exit to Mines 908 | -10/Materials | Discovered new exit (range 15) 1045 | -10/Materials | Entered Mines 1110 | -10/Mines | Assisted by bots powering up and referring to "LRC-V3" 1157 | -10/Mines | Discovered new exit (range 11) 1240 | -10/Mines | Discovered new exit (range 11) 1463 | -10/Mines | Found a damaged Exp. Sensor Array with a note attached 1469 | -10/Mines | Found Prototype Device 1594 | -10/Mines | Learned location of Storage (-8) 2117 | -10/Mines | Entered Materials 2117 | -9/Materials | Accompanied by 2 allies 2117 | -9/Materials | Evolved 2 slots: Propulsion x1, Utility x1 2300 | -9/Materials | Destroyed 7 combat bots 2782 | -9/Materials | Discovered new exit (range 7) 3005 | -9/Materials | Central database locked down 3005 | -9/Materials | Identified Exp. Sensor Array 3133 | -9/Materials | Discovered new exit (range 7) 3495 | -9/Materials | Learned location of Zion (-7) 3525 | -9/Materials | Repaired Broken Exp. Sensor Array? 3529 | -9/Materials | Identified exit to Mines 3551 | -9/Materials | Learned Storage interactive machine intel 3564 | -9/Materials | Identified exit to Materials 3566 | -9/Materials | Learned 2 Storage zone layouts 3569 | -9/Materials | Learned Storage emergency access door positions 3570 | -9/Materials | Learned location of Mines (-9) 3950 | -9/Materials | Entered Mines 3970 | -9/Mines | Learned 2 Materials zone layouts 3990 | -9/Mines | Assembled infested the area 4552 | -9/Mines | A Derelict revealed a hidden shortcut to a safe place 4610 | -9/Mines | Found a hidden stash of uninstalled traps 4744 | -9/Mines | Discovered new exit (range 5) 4911 | -9/Mines | A weapon hastily lodged in a ceiling crevice suddenly fell to the ground 4925 | -9/Mines | Learned Materials security intel 5027 | -9/Mines | Met a Derelict who couldn't figure out how to use a Trap Extractor 5359 | -9/Mines | Entered Exiles 5398 | -9/Exiles | Met 8R-AWN 5455 | -9/Exiles | Met EX-HEX 5522 | -9/Exiles | Met EX-DEC 5677 | -9/Exiles | Visited The Gauntlet 5712 | -9/Exiles | Build established: Scavenger-Mutant 5903 | -9/Exiles | Met EX-BIN 6013 | -9/Exiles | Discovered new exit (range 10) 6028 | -9/Exiles | Entered Mines 6334 | -8/Mines | Build established: Mutant 6464 | -8/Mines | Discovered exit to Materials (range 6) 7124 | -8/Mines | Entered Materials 7124 | -8/Materials | Evolved 2 slots: Propulsion x1, Utility x1 7125 | -8/Materials | Identified exit to Factory 7203 | -8/Materials | Discovered new exit (range 10) 7411 | -8/Materials | Identified exit to Storage 7741 | -8/Materials | Learned location of 1 exit from Storage 7958 | -8/Materials | Learned Storage garrison access intel 8008 | -8/Materials | Learned Factory emergency access door positions 8083 | -8/Materials | Lost 3 parts (2n1u) 8643 | -8/Materials | Build established: Scavenger-Mutant 9250 | -8/Materials | Entered Storage 9254 | -8/Storage | Loaded intel: 21 interactive machine locations 9255 | -8/Storage | Loaded intel: 1 garrison access location 9557 | -8/Storage | Used back door to open Recycling access 9557 | -8/Storage | Discovered new exit (range 5) 10273 | -8/Storage | Core integrity fell below 50% 10273 | -8/Storage | Garrison activated, responded to threat 10345 | -8/Storage | Destroyed 7 combat bots 10385 | -8/Storage | Met 01-MTF 10425 | -8/Storage | Assisted by bots powering up and referring to "LRC-V3" 10724 | -8/Storage | Build established: Commander-Mutant 10820 | -8/Storage | Learned Factory repair station intel 10877 | -8/Storage | Learned location of Lower Caves (-7) 10926 | -8/Storage | Learned Factory repair station intel 10964 | -8/Storage | Loaded intel: 16 terminal locations 10994 | -8/Storage | Learned location of Lower Caves (-6) 11299 | -8/Storage | Entered Recycling 11299 | -8/Recycling | Accompanied by 8 allies (01-MTF) 12174 | -8/Recycling | Learned Factory stockpile data 12225 | -8/Recycling | Learned Storage stockpile data 12265 | -8/Recycling | Identified exit to Factory 12313 | -8/Recycling | Learned location of Lower Caves (-6) 12383 | -8/Recycling | Identified exit to Scraptown 12495 | -8/Recycling | Learned 4 Factory zone layouts 12699 | -8/Recycling | Scanned before Scraplab entrance 12758 | -8/Recycling | Lost 8 allies 12800 | -8/Recycling | Entered Scraplab 12844 | -8/Recycling | Entered Scraptown 12844 | -8/Scraptown | Accompanied by 9 allies 12844 | -8/Scraptown | System corruption cleaned by C-Scrubber 13030 | -8/Scraptown | Visited UFD Registry 13030 | -8/Scraptown | Registered with UFD as "Smoothbank" 13048 | -8/Scraptown | Visited Awakened 13068 | -8/Scraptown | Visited Junk Repository 13118 | -8/Scraptown | Visited Cave Peace 13161 | -8/Scraptown | Visited Assassins FH 13171 | -8/Scraptown | Visited SPCMW 13189 | -8/Scraptown | Visited Cyclists 13203 | -8/Scraptown | Entered Cyclist Reading Room 13237 | -8/Scraptown | Visited Fellowship of the Rings 13580 | -8/Scraptown | Visited LU-1G1's Boring Crew 13641 | -8/Scraptown | Visited Chapter 10 13672 | -8/Scraptown | Visited Science Guys 13711 | -8/Scraptown | Visited Analyses Database 13739 | -8/Scraptown | Visited Scrap Suit Storage 13755 | -8/Scraptown | Visited Cartography Club 13899 | -8/Scraptown | Found Deep Structural Scanner 13911 | -8/Scraptown | Learned 8 Materials zone layouts 13911 | -8/Scraptown | Learned 16 Factory zone layouts 13911 | -8/Scraptown | Learned 4 Mines zone layouts 13911 | -8/Scraptown | Learned 8 Lower Caves zone layouts 13911 | -8/Scraptown | Learned location of 3 exits from Factory 13911 | -8/Scraptown | Learned 16 Upper Caves zone layouts 13911 | -8/Scraptown | Learned location of 2 exits from Research 13911 | -8/Scraptown | Learned location of 2 exits from Upper Caves 13966 | -8/Scraptown | Visited Observation Area 13986 | -8/Scraptown | Visited Derelict Rescue Squad 14222 | -8/Scraptown | Met Optimus 14222 | -8/Scraptown | Accepted into 0bPrime 14302 | -8/Scraptown | Entered Factory 14302 | -6/Factory | Accompanied by 9 allies 14302 | -6/Factory | Evolved 4 slots: Power x1, Propulsion x1, Utility x2 14303 | -6/Factory | Identified exit to Lower Caves 14303 | -6/Factory | Identified exit to Extension 14304 | -6/Factory | Identified exit to Factory 14308 | -6/Factory | Loaded intel: 6 repair station locations 14427 | -6/Factory | Loaded intel: 8 recycling unit locations 14432 | -6/Factory | Lost 3 allies 14549 | -6/Factory | Lost 4 parts (1p1u2w) 14889 | -6/Factory | Build established: Scavenger-Mutant 14909 | -6/Factory | Repaired Hvy. Ion Engine 15024 | -6/Factory | Learned location of Protoforge (-2) 16260 | -6/Factory | Build established: Mutant 16454 | -6/Factory | Repaired Cld. Deuterium Engine 16689 | -6/Factory | Core integrity fell below 50% 17072 | -6/Factory | Found Prototype Launcher 17072 | -6/Factory | Identified Scatter Rocket Array 17077 | -6/Factory | Found Scatter Rocket Array 17081 | -6/Factory | Found Scatter Rocket Array 17183 | -6/Factory | Cargo convoy interrupted 17208 | -6/Factory | Destroyed 9 combat bots 17262 | -6/Factory | Found Prototype Launcher 17262 | -6/Factory | Identified Adv. Micro-nuke Launcher 17452 | -6/Factory | First assault squad dispatched 17463 | -6/Factory | Sucked down chute 17463 | -6/Factory | Entered Waste 17464 | -6/Waste | Met a frightened Derelict 17478 | -6/Waste | EMP discharged 17478 | -6/Waste | System corruption reached 10% 17480 | -6/Waste | Found Prototype Launcher 17489 | -6/Waste | Spotted C-40 Crusher 17489 | -6/Waste | Spotted C-40 Crusher 17520 | -6/Waste | Spotted C-40 Crusher 17548 | -6/Waste | Spotted C-40 Crusher 17551 | -6/Waste | Spotted C-40 Crusher 17578 | -6/Waste | EMP discharged 17583 | -6/Waste | Spotted C-40 Crusher 17594 | -6/Waste | Crushed by Compactor (0 parts destroyed, 1 dropped) 17613 | -6/Waste | Discovered new exit (range 10) 17623 | -6/Waste | Entered Factory 17624 | -6/Factory | Loaded intel: 6 repair station locations 17688 | -6/Factory | Discovered exit to Factory (range 5) 17729 | -6/Factory | Repaired Broken Adv. Transmission Jammer 18176 | -6/Factory | Loaded intel: 8 recycling unit locations 18194 | -6/Factory | Identified Mni. Smartbomb Launcher 18577 | -6/Factory | Core integrity fell below 20% 18635 | -6/Factory | Discovered exit to Factory (range 5) 18696 | -6/Factory | Destroyed 7 combat bots 19060 | -6/Factory | Discovered exit to Lower Caves (range 3) 19150 | -6/Factory | Entered Lower Caves 19446 | -6/Lower Caves | Build established: Skirmisher 19853 | -6/Lower Caves | Encountered an infested base 19869 | -6/Lower Caves | Encountered a Warlord checkpoint 19998 | -6/Lower Caves | Discovered new exit (range 13) 20010 | -6/Lower Caves | Identified exit to Lower Caves 20012 | -6/Lower Caves | Entered another Lower Caves area 20059 | -6/Lower Caves | Build established: Mutant 20136 | -6/Lower Caves | Discovered exit to Factory (range 9) 20589 | -6/Lower Caves | Learned Factory stockpile data 20617 | -6/Lower Caves | Build established: Derelict-Mutant 20821 | -6/Lower Caves | Discovered new exit (range 5) 20824 | -6/Lower Caves | Identified exit to Data Miner 20825 | -6/Lower Caves | Entered Data Miner 20825 | -6/Data Miner | Discovered new exit (range 6) 20846 | -6/Data Miner | Met Data Miner 20868 | -6/Data Miner | Learned location of Section 7 (-2) 20868 | -6/Data Miner | Acquired the access code to Warlord's prototype stash 20883 | -6/Data Miner | Received God Mode back door access code from Data Miner 20913 | -6/Data Miner | Identified exit to Proximity Caves 20916 | -6/Data Miner | Entered Proximity Caves 20952 | -5/Proximity Caves | Escorted by Enhanced Grunt 21294 | -5/Proximity Caves | Found Prototype Device 21294 | -5/Proximity Caves | Identified Exp. Thermal Shield 21374 | -5/Proximity Caves | Learned Factory interactive machine intel 21456 | -5/Proximity Caves | Discovered exit to Factory (range 10) 21498 | -5/Proximity Caves | Entered Factory 21498 | -5/Factory | Evolved 2 slots: Propulsion x1, Utility x1 21499 | -5/Factory | Identified exit to Upper Caves 21501 | -5/Factory | Loaded intel: 54 interactive machine locations 21997 | -5/Factory | Loaded intel: 8 recycling unit locations 22072 | -5/Factory | Central database locked down 22145 | -5/Factory | System corruption reached 10% 22189 | -5/Factory | Lost 5 parts (1p3n1u) 22694 | -5/Factory | Repaired Broken Cmb. Gravmag System? 22772 | -5/Factory | Incoming investigation squad redirected 23046 | -5/Factory | Fabricated Cmb. Gravmag System? 23080 | -5/Factory | Discovered new exit (range 3) 23082 | -5/Factory | Identified exit to Factory 23366 | -5/Factory | Found Gamma Bomb Array 23383 | -5/Factory | Garrison activated, responded to threat 23635 | -5/Factory | Build established: Scout 23645 | -5/Factory | Entered Upper Caves 23646 | -5/Upper Caves | Identified exit to Upper Caves 23737 | -5/Upper Caves | A Derelict revealed a hidden shortcut to "reach the base" 23978 | -5/Upper Caves | Learned Factory emergency access door positions 24120 | -5/Upper Caves | Build established: Skirmisher 24254 | -5/Upper Caves | Learned Factory garrison access intel 24517 | -5/Upper Caves | Entered another Upper Caves area 24518 | -5/Upper Caves | Identified exit to Warlord 24519 | -5/Upper Caves | Attracted the attention of an 0b10 outpost 24614 | -5/Upper Caves | Learned location of 1 exit from Factory 24670 | -5/Upper Caves | Found Alien Artifact 24670 | -5/Upper Caves | Identified Core Expander 24670 | -5/Upper Caves | Installed Core Expander, added new Power slot 24990 | -5/Upper Caves | Attracted the attention of an 0b10 checkpoint 25180 | -5/Upper Caves | Entered Warlord 25181 | -5/Warlord | Identified exit to Proximity Caves 25216 | -5/Warlord | System corruption cleaned by Quarantine Array 25477 | -5/Warlord | Opened Warlord's prototype stash 25501 | -5/Warlord | Found Prototype Processor 25501 | -5/Warlord | Identified Exp. Target Analyzer 25507 | -5/Warlord | Found Prototype Processor 25507 | -5/Warlord | Identified Exp. Targeting Computer 25522 | -5/Warlord | Found Prototype Reactor 25657 | -5/Warlord | Build established: Commander-Skirmisher 25770 | -5/Warlord | Warlord's base attacked by MAIN.C 25811 | -5/Warlord | Found Prototype Energy Cannon 25811 | -5/Warlord | Identified Vortex Driver 25813 | -5/Warlord | Found Vortex Driver 25869 | -5/Warlord | Attached CPS modules to LV-01A. 25879 | -5/Warlord | Identified Vortex Chain Reactor 25888 | -5/Warlord | Murdered LV-01A 25894 | -5/Warlord | Found Prototype Launcher 25894 | -5/Warlord | Identified Exp. Neutron Missile Launcher 25908 | -5/Warlord | Found Prototype Device 25908 | -5/Warlord | Identified Matter Focus 25920 | -5/Warlord | Found Prototype Processor 25920 | -5/Warlord | Identified Spectral Analyzer 25928 | -5/Warlord | Found Prototype Device 25928 | -5/Warlord | Identified Exp. Focal Shield 25970 | -5/Warlord | Found Matter Focus 26120 | -5/Warlord | Warlord forces counterattacked 26143 | -5/Warlord | Spotted Striker 26239 | -5/Warlord | Spotted Executioner 26247 | -5/Warlord | Lost 7 allies 26261 | -5/Warlord | Attached CPS modules to Executioner. 26278 | -5/Warlord | Spotted Striker 26290 | -5/Warlord | Found Prototype Processor 26296 | -5/Warlord | Destroyed Striker 26307 | -5/Warlord | Found Exp. Targeting Computer 26310 | -5/Warlord | Found Prototype Device 26310 | -5/Warlord | Identified Adv. Kinecellerator 26320 | -5/Warlord | Destroyed 7 combat bots 26320 | -5/Warlord | Found Prototype Processor 26322 | -5/Warlord | Identified Exp. Core Analyzer (x2) 26324 | -5/Warlord | Lost 15 allies 26359 | -5/Warlord | Build established: Scavenger-Mutant 26418 | -5/Warlord | Spotted Striker 26421 | -5/Warlord | Spotted Striker 26445 | -5/Warlord | Warlord base infiltrated, sounded retreat 26455 | -5/Warlord | Spotted Striker 26505 | -5/Warlord | Attached CPS modules to Enhanced Demolisher. 26514 | -5/Warlord | Attached CPS modules to Enhanced Demolisher. 26575 | -5/Warlord | Rebuked by Warlord 26581 | -5/Warlord | Spotted Striker 26598 | -5/Warlord | P-70 Sage assimilated allied IL-TFV(g) 26624 | -5/Warlord | P-80 Master assimilated allied QS-ECU(c) 26624 | -5/Warlord | Spotted B-75 Beast 26627 | -5/Warlord | P-70 Sage assimilated allied QB-SXR(s) 26638 | -5/Warlord | Spotted Executioner 26639 | -5/Warlord | Spotted Striker 26681 | -5/Warlord | Spotted Striker 26684 | -5/Warlord | Spotted Striker 26685 | -5/Warlord | Spotted Striker 26690 | -5/Warlord | Spotted B-86 Titan 26722 | -5/Warlord | Entered Proximity Caves 26739 | -4/Proximity Caves | Lost 22 allies 27032 | -4/Proximity Caves | Build established: Scavenger-Skirmisher 27201 | -4/Proximity Caves | Received a Behemoth hack from an annoying Tinkerer 27228 | -4/Proximity Caves | Discovered exit to Factory (range 17) 27350 | -4/Proximity Caves | Entered Factory 27350 | -4/Factory | Evolved 2 slots: Propulsion x2 27351 | -4/Factory | Identified exit to Upper Caves 27352 | -4/Factory | Identified exit to Research 27354 | -4/Factory | Loaded intel: 4 garrison access locations 27505 | -4/Factory | Discovered exit to Upper Caves (range 7) 27522 | -4/Factory | Repaired Graviton Reactor? 27645 | -4/Factory | Build established: Scavenger-Scout 27682 | -4/Factory | Loaded intel: 8 recycling unit locations 27704 | -4/Factory | Incoming investigation squad redirected 27735 | -4/Factory | Repaired Exp. Weapon Shielding 27879 | -4/Factory | Spotted B-86 Titan 27907 | -4/Factory | Garrison activated, responded to threat 27909 | -4/Factory | Incoming investigation squad redirected 28019 | -4/Factory | Entered Upper Caves 28051 | -4/Upper Caves | Lost 4 parts (2p1u1w) 28355 | -4/Upper Caves | Discovered new exit (range 21) 28393 | -4/Upper Caves | Spotted B-86 Titan 28485 | -4/Upper Caves | Identified exit to Upper Caves 28490 | -4/Upper Caves | Entered another Upper Caves area 28499 | -4/Upper Caves | Encountered a Warlord checkpoint 28510 | -4/Upper Caves | Learned location of 1 exit from Research 28575 | -4/Upper Caves | Discovered exit to Research (range 21) 28814 | -4/Upper Caves | Discovered new exit (range 16) 28833 | -4/Upper Caves | Identified exit to Zhirov 28835 | -4/Upper Caves | Learned Research stockpile data 28837 | -4/Upper Caves | Entered Zhirov 28837 | -4/Zhirov | Discovered new exit (range 3) 28850 | -4/Zhirov | Identified exit to Proximity Caves 28859 | -4/Zhirov | Met Zhirov 28872 | -4/Zhirov | Zhirov requested help retrieving the SGEMP Prototype 28881 | -4/Zhirov | Found Alien Artifact 28881 | -4/Zhirov | Identified Integrated Reactor 28881 | -4/Zhirov | Installed Integrated Reactor, increased core energy generation (+10) 28919 | -4/Zhirov | Found Alien Artifact 28990 | -4/Zhirov | Entered Proximity Caves 29423 | -3/Proximity Caves | Discovered exit to Research (range 9) 29451 | -3/Proximity Caves | Entered Research 29451 | -3/Research | Evolved 2 slots: Utility x2 29452 | -3/Research | Identified exit to Armory 29453 | -3/Research | Identified exit to Testing 29453 | -3/Research | Identified exit to Research 29484 | -3/Research | Found Unknown Device 29484 | -3/Research | Identified Heavy Servo Lattice 29493 | -3/Research | Loaded intel: 5 recycling unit locations 29518 | -3/Research | Incoming investigation squad redirected 29553 | -3/Research | Repaired Cmb. Gravmag System? 29578 | -3/Research | Found Prototype Device 29578 | -3/Research | Identified Exp. EM Disruption Field 29661 | -3/Research | Lost 3 parts (1p1n1w) 29756 | -3/Research | Build established: Hacker-Scout 29763 | -3/Research | Found Prototype Protection 29763 | -3/Research | Identified Centrium Heavy Armor Plating 29887 | -3/Research | Entered Testing 30049 | -3/Testing | Central database locked down 30049 | -3/Testing | Identified Transdimensional Reconstructor 30079 | -3/Testing | Spotted Striker 30175 | -3/Testing | Found Prototype Device 30175 | -3/Testing | Identified Exp. ECM Suite 30289 | -3/Testing | Found Prototype Energy Gun 30289 | -3/Testing | Identified Tachyon Dispersion Ray 30334 | -3/Testing | Discovered exit to Research (range 11) 30352 | -3/Testing | Build established: Scavenger-Scout 30722 | -3/Testing | Unchained authorized (DW-4LL) 30798 | -3/Testing | System corruption reached 10% 30834 | -3/Testing | Entered Research 30834 | -2/Research | Evolved 2 slots: Utility x1, Weapon x1 30835 | -2/Research | Identified exit to Quarantine 30851 | -2/Research | Discovered new exit (range 19) 30991 | -2/Research | Unchained authorized (DW-4LL) 31199 | -2/Research | Incoming investigation squad redirected 31211 | -2/Research | Found Exp. EM Disruption Field 31214 | -2/Research | Spotted B-90 Cyclops 31237 | -2/Research | Entered Quarantine 31259 | -2/Quarantine | Found Alien Slashing Weapon 31259 | -2/Quarantine | Identified Sigix Broadsword 31305 | -2/Quarantine | Found Alien Artifact 31314 | -2/Quarantine | Found Alien Artifact 31414 | -2/Quarantine | Identified Core Reset Matrix 31416 | -2/Quarantine | Unchained authorized (DW-4LL) 31492 | -2/Quarantine | Found Prototype Device 31492 | -2/Quarantine | Identified Exp. Transmission Jammer 31613 | -2/Quarantine | Found Alien Artifact 31639 | -2/Quarantine | System corruption reached 10% 31668 | -2/Quarantine | System corruption reached 30% 31725 | -2/Quarantine | Lost 17 parts (2p4n11u) 31789 | -2/Quarantine | Found Prototype Device 31789 | -2/Quarantine | Identified Exp. Actuator Array 31800 | -2/Quarantine | Discovered new exit (range 16) 31807 | -2/Quarantine | Found Alien Artifact 31810 | -2/Quarantine | Found Alien Artifact 31823 | -2/Quarantine | Cryocooling Duct disabled 31825 | -2/Quarantine | Cryocooling Duct disabled 31838 | -2/Quarantine | Ambient heat levels rising (+20) 31838 | -2/Quarantine | Non-combat units ordered to evacuate 31840 | -2/Quarantine | Ambient heat levels rising (+20) 31840 | -2/Quarantine | Combat units ordered to evacuate 31901 | -2/Quarantine | DW-4LL burst out of a wall 31923 | -2/Quarantine | Spotted Fortress 31940 | -2/Quarantine | Quarantine Guard activated 31956 | -2/Quarantine | Discovered new exit (range 14) 31959 | -2/Quarantine | Discovered new exit (range 6) 31962 | -2/Quarantine | Core integrity fell below 50% 31982 | -2/Quarantine | Entered Protoforge 31998 | -2/Protoforge | Superfortress began startup sequence 32047 | -2/Protoforge | Discovered new exit (range 8) 32051 | -2/Protoforge | Identified exit to Access 32051 | -2/Protoforge | Entered Access 32051 | -1/Access | Evolved 2 slots: Utility x2 32077 | -1/Access | Lost 12 parts (2p5n3u2w) 32339 | -1/Access | Spotted B-99 Colossus 32353 | -1/Access | Spotted B-99 Colossus 32353 | -1/Access | Spotted B-99 Colossus 32362 | -1/Access | Identified Terrabomb 32362 | -1/Access | Used Terrabomb 32365 | -1/Access | Released all parts (8) 32371 | -1/Access | Core integrity fell below 50% 32378 | -1/Access | Discovered new exit (range 4) 32384 | *** | Escaped! Last Messages --------------- 32365_ Released Gyrokinetic Inverter. 32365_ Released Exp. Transmission Jammer. 32365_ Released Cmb. Antigrav System+. 32365_ Released Adv. Signal Interpreter. 32365_ Released Exp. Sensor Array. 32365_ Released Adv. Signal Interpreter. 32365_ Released Lgt. Quantum Reactor. 32365_ Extracted 171 matter. 32366_ Longscan Aggregator disabled. 32366_ Penetrated by Slug. 32366_ Knocked back. 32366_ Penetrated by Slug. 32369_ Slug penetrates Sealed Heavy Doors. 32369_ Slug penetrates B-99 Colossus. 32370_ Wave Collapse Detector explodes. 32370_ Penetrated by Slug. 32371_ U-05 Engineer builds a Wall. 32378_ Main Access Shell breached. 32378_ EXIT=FOUND 32378_ U-05 Engineer builds a Wall. Map ----- +----------------------------------------------------+ | ?????????????????????????????????????????????????? | | ?????????????????????????????????????????????????? | | ?????????????????????????????????????????????????? | | ?????????????????????????????????????????????????? | | ?????????????????????????????????????????????????? | | ?????????????????????????????????????????????????? | | ?????????????????????????????????????????????????? | | ?????????????????????????????????????????????????? | | ?????????????????????????????????????????????????? | | ?????????????????????????????????????????????????? | | ?????????????????????????????????????????????????? | | ?????????????????????????????????????????????????? | | ?????????????????????????????????????????????????? | | ?????????????????????????????????????????????????? | | ?????????????????????????????????????????????????? | | ?????????????????????????????????????????????????? | | ???????????????????????????????????"? ???????? | | ??????????????????????????????????""" ??????? | | ?????????????????????????????????? """ ??????? | | ?????????????????????????????????? " #?????? | | ????????????????????""""""""""""## #?????? | | ????????????????????# ""#] ???????? | | ????????????????????# " "#"#####????????? | | ??????????????????# " """ "" " " " ###??????? | | ???????????????????????" " " " " ## "???? | | ???????????????????????" @" " " " " #""???? | | ???????????????????????" "" " " " " ""T ??? | | ???????????????????????" " " """" ? | | ???????????????????????"""""" " " "" | | ???????????????? " " "" | | ???????????????????????""""""""" " | | ????????????????? ???????????"" """"### | | ????????????????? "?????????"" " | | ???????????????? """""""""""" =" | | ???????????????? " %" " | | ???????????????? " % " " | | ??????????????? " " """"+"# | | ??????????????? " " " ]" " | | ?????????????? " " " " " | | ?????????????? " " """""""+""""" | | ?????????????? " %" " | | ?????????????? """" !!]" """" | | ?????????????? " !!*=% " ? | | ?????????#####"""""""""" %]!** " ? | | ???????? ==! """""""""""+"""?? | | ???????? "! " """G""" "??? | | ???????? " " """ """ ???? | | ???????? " " ??? ???? | | ??????????######""""+""" " " = ????????? | | ???????????????? " " " ""???????? | +----------------------------------------------------+ Best States ------------- Heat Dissipation 125 Coolant Potential 120 Energy Generation 89 Energy Capacity 940 Matter Stores 666 Matter Capacity 800 Sight Range 24 Robot Scan Range 20 Terrain Scan Density 10 Jamming Range 22 Cloak Strength 3 Additional Mass Support 12 EM Shielding 3 Corruption Block 20 Armor Coverage 750 Resistance: KI 30 Resistance: TH 30 Core Shielding 20 Weapon Shielding 90 Weapon Cycling 25 Evasion (%) 70 Targeting Accuracy 12 Target Analysis 10 Core Analysis 8 Recoil Reduction 6 Matter Filtering 50 Offensive Hacking 28 Authchip Count 1 Item Schematics ----------------- Exp. Sensor Array | -9/Materials | Scanalyzed Transport Network Coupler | -9/Materials | Scanalyzed Imp. Weapon Shielding | -9/Materials | Scanalyzed Seismic Detector | -9/Materials | Scanalyzed Lrg. Storage Unit | -9/Materials | Scanalyzed Imp. Linear Gravjet | -6/Factory | Hacked HERF Cannon | -6/Factory | Hacked Combat Drone Bay | -6/Data Miner | Free Lgt. Regenerative Plating | -6/Data Miner | Free Enh. Flexi-carbon Leg | -6/Data Miner | Free Prc. Energy Filter | -6/Data Miner | Free Imp. KE Penetrator | -6/Data Miner | Free Adv. VSS Leg | -6/Data Miner | Free Adv. Cryofiber Web | -6/Data Miner | Free Matter Neutralizer | -6/Data Miner | Free CPS Tube | -5/Factory | Scanalyzed Exp. Cooling System | -5/Factory | Scanalyzed Cld. Gravmag System | -5/Factory | Scanalyzed Cmb. Gravmag System | -5/Factory | Scanalyzed Assault Drone Bay | -4/Zhirov | Free Exp. Heat Sink | -4/Zhirov | Free Exp. Optical Array | -4/Zhirov | Free Imp. Arc Thrower | -4/Zhirov | Free Cmb. Linear Gravjet | -3/Testing | Scanalyzed Imp. Matter Neutralizer | -2/Quarantine | Archive Adv. Plasma Rifle | -2/Quarantine | Archive Exp. Gyrokinetic Inverter | -2/Quarantine | Archive Robot Schematics ------------------ S-27 Virus | -6/Data Miner | Free R-10 Processor | -6/Data Miner | Free H-66 Slayer | -6/Data Miner | Free Fabricated ------------ Cmb. Gravmag System | x2 | -5/Factory Repaired ---------- Exp. Sensor Array | 62% | -9/Materials | Broken Hvy. Ion Engine | 5% | -6/Factory Cld. Deuterium Engine | 5% | -6/Factory Adv. Transmission Jammer | 50% | -6/Factory | Broken Cmb. Gravmag System | 99% | -5/Factory | Broken Graviton Reactor | 38% | -4/Factory Exp. Weapon Shielding | 20% | -4/Factory Cmb. Gravmag System | 8% | -3/Research Studied --------- Spread Laser | -9/Materials | Hacked Rocket Launcher | -9/Materials | Hacked Carbon-fiber Leg | -6/Factory | Hacked Hyp. Gauss Cannon | -5/Factory | Hacked Cmb. Antigrav System | -3/Testing | Hacked Cmb. Gravmag System | -2/Research | Hacked Cmb. Linear Gravjet | -2/Quarantine | Hacked Enh. Nova Cannon | -2/Quarantine | Hacked Alien Tech Used ----------------- Core Expander Integrated Reactor Sigix Broadsword Terrabomb Achievements -------------- None Challenges ------------ None Game ------ Seed SalvagingAerolevPendant Manual? 0 Play Time 05:29:44 Cumulative 461.1 hours Start 2025.10.28 @ 20:06:54 End 2025.10.29 @ 03:24:48 Sessions 3 Manual Loads 0 Difficulty Rogue Special Mode None Game No. 243 Rogue 243 Adventurer 0 Explorer 0 Win Type 0 Total 21 Types 13/1/5/1/0/0/0/1/0/0 Lore% 92 Gallery% 85 Achievement% 77 Wizard Run 0 Options --------- Layout 2 ASCII 0 Keyboard 1 Movement Vi Keybinds 0 Fullscreen 1 Font 28/Terminus Map View 50x52 Zoom Use 0% Tactical HUD 1 Map Filters NONE Filters NONE Steam 1 RUN: 1f49e670-aaed-49df-8565-f9cab8090cfa